{"text_format":"1","workbook":"xlsx","n_sheets":4,"sheets":["PRADŽIA","NAUDOJIMO INSTRUKCIJA","SKAIČIUOKLĖ","ATNAUJINIMAS"],"not_rendered":{"charts":1,"images":16,"macros":1,"external_links":1,"defined_names":1,"comments":0,"pivot_tables":0},"unopened":[],"bounds":{"document_bytes":16777216,"sheet_cells":100000,"rows_first":2000,"rows_last":500,"rows_between":2000,"halvings":0,"cell_chars":16384,"cell_head_chars":4096},"cells_cut":0,"cells_raw":0,"read":"whole","date_system":"1900"}

{"sheet":"PRADŽIA","index":0,"n_rows":0,"n_cols":0,"rows_kept":0,"cut":false,"hidden":false,"merged":[[0,17,4,21]]}

{"sheet":"NAUDOJIMO INSTRUKCIJA","index":1,"n_rows":0,"n_cols":0,"rows_kept":0,"cut":false,"hidden":false,"merged":[]}

{"sheet":"SKAIČIUOKLĖ","index":2,"n_rows":238,"n_cols":53,"rows_kept":238,"cut":false,"hidden":false,"merged":[[2,5,2,14],[29,9,29,14]]}
[null,null,null,null,null,null,null,null,null,null,null,null,null,null,null,null,null,null,null,null,null,null,null,null,"Duomenys \"helper\" stulpeliams",null,null,"Helper stulpeliai",null,null,null,null,"Degalų rušies dropdown'ui. Pagal H3 stulpelį suranda kokios kuro rūšis aktualios TP klasei",null,null,null,null,null,null,"Duomenys \"helper\" stulpeliams",null,null,"Helper stulpeliai",null," "," "," ","Degalų rušies dropdown'ui. Pagal H3 stulpelį suranda kokios kuro rūšis aktualios TP klasei"]
[null,null,null,null,null,null,null,null,null,null,null,null,null,null,null,null,null,null,null,null,null,null,"Dropdown'o pasirinkimai",null,"Priemonės tipas","Kuro tipas","kt CO2 eq. per metus",null,"H1","H2","H3",null,"Dropdown 2",null,null,"H2 for old vehicle CO2 eq. value","H3 for CO2 eq. value",null,null,"Priemonės tipas","Kuro tipas"," CO2 g/km "," ","H1","H2","H3",null,"Dropdown 2",null,null,"H2 for old vehicle CO2 eq. value","H3 for CO2 eq. value"]
[null,null,null,null,null,"TRANSPORTO PRIEMONIŲ KELIONĖJE SUNAUDOJAMŲ DEGALŲ IR IŠMETAMO CO2 G/KM KIEKIO REGULIAVIMO POVEIKIO VERTINIMO SKAIČIUOKLĖ",null,null,null,null,null,null,null,null,null,null,null,null,null,null,null,null,"M1",null,"M1","Benzinas",1.6000000000000001E-3,null,1,{"$f":"IF(Y3=H$8,AC3,\"\")","v":1},{"$f":"IFERROR(SMALL(AD$3:AD$27,AC3),\"\")","v":1},null,{"$f":"IFERROR(INDEX(Z$3:Z$27,AE3,COLUMNS(AG3:AG3)),\"\")","v":"Benzinas"},null,null,{"$f":"IF(AND(H$8=Y3,Z3=H$11),AC3,\"\")","v":""},{"$f":"IFERROR(SMALL(AJ$3:AJ$27,AC3),\"\")","v":4},null,null,"M1","Benzinas",168.35," ",1,{"$f":"IF(AN3=H$8,AR3,\"\")","v":1},{"$f":"IFERROR(SMALL(AS$3:AS$27,AR3),\"\")","v":1},null,{"$f":"IFERROR(INDEX(AO$3:AO$27,AT3,COLUMNS(AV3)),\"\")","v":"Benzinas"},null,null,{"$f":"IF(AND(H$8=AN3,AO3=H$11),AR3,\"\")","v":""},{"$f":"IFERROR(SMALL(AY$3:AY$27,AR3),\"\")","v":4}]
[null,null,null,null,null,null,null,null,null,null,null,null,null,null,null,null,null,null,null,null,null,null,"M2",null,"M1","Suskystintos naftos dujos",2.5999999999999999E-3,null,2,2,{"$f":"IFERROR(SMALL(AD$3:AD$27,AC4),\"\")","v":2},null,{"$f":"IFERROR(INDEX(Z$3:Z$27,AE4,COLUMNS(AG4:AG4)),\"\")","v":"Suskystintos naftos dujos"},null,null,"",{"$f":"IFERROR(SMALL(AJ$3:AJ$27,AC4),\"\")","v":""},null,null,"M1","Suskystintos naftos dujos",232.69," ",2,2,{"$f":"IFERROR(SMALL(AS$3:AS$27,AR4),\"\")","v":2},null,{"$f":"IFERROR(INDEX(AO$3:AO$27,AT4,COLUMNS(AV4)),\"\")","v":"Suskystintos naftos dujos"},null,null,"",{"$f":"IFERROR(SMALL(AY$3:AY$27,AR4),\"\")","v":""}]
[null,null,null,null,null,"Metai","Numatyta reikšmė",null,null,2025,2026,2027,2028,2029,2030,null,null,null,null,null,null,null,"M3",null,null,null,null,null,3,"",4,null,{"$f":"IFERROR(INDEX(Z$3:Z$27,AE5,COLUMNS(AG5:AG5)),\"\")","v":"Dyzelinas"},null,null,"","",null,null,null,null,null," ",3,"",4,null,{"$f":"IFERROR(INDEX(AO$3:AO$27,AT5,COLUMNS(AV5)),\"\")","v":"Dyzelinas"},null,null,"",""]
[null,null,null,null,null,null,null,null,null,null,null,null,null,null,null,null,null,null,null,null,null,null,"N1",null,"M1","Dyzelinas",2E-3,null,4,4,5,null,{"$f":"IFERROR(INDEX(Z$3:Z$27,AE6,COLUMNS(AG6:AG6)),\"\")","v":"Vidutinis taršus automobilis"},null,null,4,"",null,null,"M1","Dyzelinas",147.63," ",4,4,5,null,{"$f":"IFERROR(INDEX(AO$3:AO$27,AT6,COLUMNS(AV6)),\"\")","v":"Vidutinis taršus automobilis"},null,null,4,""]
[null,null,null,null,null,null,null,null,null,null,null,null,null,null,null,null,null,null,null,null,null,null,"N2",null,"M1","Vidutinis taršus automobilis",1.9E-3,null,5,5,"",null,{"$f":"IFERROR(INDEX(Z$3:Z$27,AE7,COLUMNS(AG7:AG7)),\"\")","v":""},null,null,"","",null,null,"M1","Vidutinis taršus automobilis",157.05000000000001," ",5,5,"",null,{"$f":"IFERROR(INDEX(AO$3:AO$27,AT7,COLUMNS(AV7)),\"\")","v":""},null,null,"",""]
[null,null,null,null,null,"Bendra MTP klasė                                                                                                                         ","Pasirinkite iš sąrašo","M1","M1","N2","N2","N2","N2","N2","N2",null,null,null,null,null,null,null,"N3",null,null,null,null,null,6,"","",null,{"$f":"IFERROR(INDEX(Z$3:Z$27,AE8,COLUMNS(AG8:AG8)),\"\")","v":""},null,null,"","",null,null,null,null,null," ",6,"","",null,{"$f":"IFERROR(INDEX(AO$3:AO$27,AT8,COLUMNS(AV8)),\"\")","v":""},null,null,"",""]
[null,null,null,null,null,null,null,null,null,null,null,null,null,null,null,null,null,null,null,null,null,null,null,null,"M2","Dyzelinas",1.5599999999999999E-2,null,7,"","",null,{"$f":"IFERROR(INDEX(Z$3:Z$27,AE9,COLUMNS(AG9:AG9)),\"\")","v":""},null,null,"","",null,null,"M2","Dyzelinas",510.29," ",7,"","",null,{"$f":"IFERROR(INDEX(AO$3:AO$27,AT9,COLUMNS(AV9)),\"\")","v":""},null,null,"",""]
[null,null,null,null,null,null,null,null,null,null,null,null,null,null,null,null,null,null,null,null,null,null,null,null,null,null,null,null,8,"","",null,{"$f":"IFERROR(INDEX(Z$3:Z$27,AE10,COLUMNS(AG10:AG10)),\"\")","v":""},null,null,"","",null,null,null,null,null," ",8,"","",null,{"$f":"IFERROR(INDEX(AO$3:AO$27,AT10,COLUMNS(AV10)),\"\")","v":""},null,null,"",""]
[null,null,null,null,null,"Bendras MTP degalų rūšis","Pasirinkite iš sąrašo","Dyzelinas","Dyzelinas","Dyzelinas","Dyzelinas","Dyzelinas","Dyzelinas","Dyzelinas","Dyzelinas",null,null,null,null,null,null,null,null,null,null,null,null,null,9,"","",null,{"$f":"IFERROR(INDEX(Z$3:Z$27,AE11,COLUMNS(AG11:AG11)),\"\")","v":""},null,null,"","",null,null,null,null,null," ",9,"","",null,{"$f":"IFERROR(INDEX(AO$3:AO$27,AT11,COLUMNS(AV11)),\"\")","v":""},null,null,"",""]
[null,null,null,null,null,"Vienos MTP bazinis ŠESD kiekis (kt CO2 ekv.)","Numatyta reikšmė",{"$f":"IFERROR(INDEX(AA$3:AA$27,AK3,COLUMNS(H12)),\"\")","v":2E-3},{"$f":"IFERROR(INDEX(AA$33:AA$57,AK33,COLUMNS(I12)),\"\")","v":1.9E-3},{"$f":"IFERROR(INDEX(AA$64:AA$88,AK64,COLUMNS(J12)),\"\")","v":6.8999999999999999E-3},{"$f":"IFERROR(INDEX(AA$94:AA$118,AK94,COLUMNS(K12)),\"\")","v":6.4999999999999997E-3},{"$f":"IFERROR(INDEX(AA$124:AA$148,AK124,COLUMNS(L12)),\"\")","v":6.1999999999999998E-3},{"$f":"IFERROR(INDEX(AA$154:AA$178,AK154,COLUMNS(M12)),\"\")","v":5.8999999999999999E-3},{"$f":"IFERROR(INDEX(AA$184:AA$208,AK184,COLUMNS(N12)),\"\")","v":5.5999999999999999E-3},{"$f":"IFERROR(INDEX(AA$214:AA$238,AK214,COLUMNS(O12)),\"\")","v":5.1999999999999998E-3},null,null,null,null,null,null,null,null,null,"M3","Dyzelinas",8.8499999999999995E-2,null,10,"","",null,{"$f":"IFERROR(INDEX(Z$3:Z$27,AE12,COLUMNS(AG12:AG12)),\"\")","v":""},null,null,"","",null,null,"M3","Dyzelinas",1952.77," ",10,"","",null,{"$f":"IFERROR(INDEX(AO$3:AO$27,AT12,COLUMNS(AV12)),\"\")","v":""},null,null,"",""]
[null,null,null,null,null,"*Vienos MTP išmetamas bazinis CO2 kiekis (g/km) ","Numatyta reikšmė",{"$f":"IFERROR(INDEX(AP$3:AP$27,AZ3,COLUMNS(H12)),\"\")","v":147.63},{"$f":"IFERROR(INDEX(AP$33:AP$57,AZ33,COLUMNS(I12)),\"\")","v":144.72},{"$f":"IFERROR(INDEX(AP$64:AP$88,AZ64,COLUMNS(J12)),\"\")","v":291.27},{"$f":"IFERROR(INDEX(AP$94:AP$118,AZ94,COLUMNS(K12)),\"\")","v":273.74},{"$f":"IFERROR(INDEX(AP$124:AP$148,AZ124,COLUMNS(L12)),\"\")","v":259.73},{"$f":"IFERROR(INDEX(AP$154:AP$178,AZ154,COLUMNS(M12)),\"\")","v":248.02},{"$f":"IFERROR(INDEX(AP$184:AP$208,AZ184,COLUMNS(N12)),\"\")","v":236.16},{"$f":"IFERROR(INDEX(AP$214:AP$238,AZ214,COLUMNS(O12)),\"\")","v":221.25},null,null,null,null,null,null,null,null,null,null,null,null,null,11,"","",null,{"$f":"IFERROR(INDEX(Z$3:Z$27,AE13,COLUMNS(AG13:AG13)),\"\")","v":""},null,null,"","",null,null,null,null,null," ",11,"","",null,{"$f":"IFERROR(INDEX(AO$3:AO$27,AT13,COLUMNS(AV13)),\"\")","v":""},null,null,"",""]
[null,null,null,null,null,null,null,null,null,null,null,null,null,null,null,null,null,null,null,null,null,null,null,null,null,null,null,null,12,"","",null,{"$f":"IFERROR(INDEX(Z$3:Z$27,AE14,COLUMNS(AG14:AG14)),\"\")","v":""},null,null,"","",null,null,null,null,null," ",12,"","",null,{"$f":"IFERROR(INDEX(AO$3:AO$27,AT14,COLUMNS(AV14)),\"\")","v":""},null,null,"",""]
[null,null,null,null,null,null,null,null,null,null,null,null,null,null,null,null,null,null,null,null,null,null,null,null,"N1","Benzinas",3.5000000000000001E-3,null,13,"","",null,{"$f":"IFERROR(INDEX(Z$3:Z$27,AE15,COLUMNS(AG15:AG15)),\"\")","v":""},null,null,"","",null,null,"N1","Benzinas",272.3," ",13,"","",null,{"$f":"IFERROR(INDEX(AO$3:AO$27,AT15,COLUMNS(AV15)),\"\")","v":""},null,null,"",""]
[null,null,null,null,null,"Vienos MTP išmetamas projektinis CO2 kiekis (g/km) ","Įveskite",null,null,null,null,null,null,null,null,null,null,null,null,null,null,null,null,null,"N1","Suskystintos naftos dujos",4.5999999999999999E-3,null,14,"","",null,{"$f":"IFERROR(INDEX(Z$3:Z$27,AE16,COLUMNS(AG16:AG16)),\"\")","v":""},null,null,"","",null,null,"N1","Suskystintos naftos dujos",354.36," ",14,"","",null,{"$f":"IFERROR(INDEX(AO$3:AO$27,AT16,COLUMNS(AV16)),\"\")","v":""},null,null,"",""]
[null,null,null,null,null,null,null,null,null,null,null,null,null,null,null,null,null,null,null,null,null,null,null,null,"N1","Dyzelinas",3.8E-3,null,15,"","",null,{"$f":"IFERROR(INDEX(Z$3:Z$27,AE17,COLUMNS(AG17:AG17)),\"\")","v":""},null,null,"","",null,null,"N1","Dyzelinas",180.72," ",15,"","",null,{"$f":"IFERROR(INDEX(AO$3:AO$27,AT17,COLUMNS(AV17)),\"\")","v":""},null,null,"",""]
[null,null,null,null,null,"Vienos MTP bazinės CO2 emisijos sumažėjimas (%) ",null,{"$f":"IFERROR(1-(H16/H13),)","v":1},{"$f":"IFERROR(1-(I16/I13),)","v":1},1,1,1,1,1,1,null,null,null,null,null,null,null,null,null,"N1","Vidutinis taršus automobilis",3.8E-3,null,16,"","",null,{"$f":"IFERROR(INDEX(Z$3:Z$27,AE18,COLUMNS(AG18:AG18)),\"\")","v":""},null,null,"","",null,null,"N1","Vidutinis taršus automobilis",182.79," ",16,"","",null,{"$f":"IFERROR(INDEX(AO$3:AO$27,AT18,COLUMNS(AV18)),\"\")","v":""},null,null,"",""]
[null,null,null,null,null,null,null,null,null,null,null,null,null,null,null,null,null,null,null,null,null,null,null,null,null,null,null,null,17,"","",null,{"$f":"IFERROR(INDEX(Z$3:Z$27,AE19,COLUMNS(AG19:AG19)),\"\")","v":""},null,null,"","",null,null,null,null,null," ",17,"","",null,{"$f":"IFERROR(INDEX(AO$3:AO$27,AT19,COLUMNS(AV19)),\"\")","v":""},null,null,"",""]
[null,null,null,null,null,"**Vienos MTP bazinio CO2 kiekio arba                                                                         kelionėje sunaudojamų degalų sumažėjimas (%) ","Įveskite (pasirinktinai)",{"$f":"H18","v":1},{"$f":"I18","v":1},1,1,1,1,1,1,null,null,null,null,null,null,null,null,null,"N2","Benzinas",5.1000000000000004E-3,null,18,"","",null,{"$f":"IFERROR(INDEX(Z$3:Z$27,AE20,COLUMNS(AG20:AG20)),\"\")","v":""},null,null,"","",null,null,"N2","Benzinas",1123.67," ",18,"","",null,{"$f":"IFERROR(INDEX(AO$3:AO$27,AT20,COLUMNS(AV20)),\"\")","v":""},null,null,"",""]
[null,null,null,null,null,null,null,null,null,null,null,null,null,null,null,null,null,null,null,null,null,null,null,null,"N2","Suskystintos naftos dujos",7.9000000000000008E-3,null,19,"","",null,{"$f":"IFERROR(INDEX(Z$3:Z$27,AE21,COLUMNS(AG21:AG21)),\"\")","v":""},null,null,"","",null,null,"N2","Suskystintos naftos dujos",456.95," ",19,"","",null,{"$f":"IFERROR(INDEX(AO$3:AO$27,AT21,COLUMNS(AV21)),\"\")","v":""},null,null,"",""]
[null,null,null,null,null,null,null,null,null,null,null,null,null,null,null,null,null,null,null,null,null,null,null,null,"N2","Dyzelinas",7.4000000000000003E-3,null,20,"","",null,null,null,null,"","",null,null,"N2","Dyzelinas",313.60000000000002," ",20,"","",null,null,null,null,"",""]
[null,null,null,null,null,"Bendras MTP kiekis (vnt.)","Įveskite",null,null,null,null,null,null,null,null,null,null,null,null,null,null,null,null,null,null,null,null,null,21,"","",null,null,null,null,"","",null,null,null,null,null," ",21,"","",null,null,null,null,"",""]
[null,null,null,null,null,null,null,null,null,null,null,null,null,null,null,null,null,null,null,null,null,null,null,null,"N2","Vidutinis taršus automobilis",8.2000000000000007E-3,null,22,"","",null,null,null,null,"","",null,null,"N2","Vidutinis taršus automobilis",589.08000000000004," ",22,"","",null,null,null,null,"",""]
[null,null,null,null,null,null,null,null,null,null,null,null,null,null,null,null,null,null,null,null,null,null,null,null,"N3","Dyzelinas",2.2599999999999999E-2,null,23,"","",null,null,null,null,"","",null,null,"N3","Dyzelinas",595.19000000000005," ",23,"","",null,null,null,null,"",""]
[null,null,null,null,null,"ŠESD kiekio pokytis (kt CO2 ekv.)",null,{"$f":"IFERROR(H20*(H12)*H23,\"\")","v":0},{"$f":"IFERROR(I20*(I12)*I23,\"\")","v":0},0,{"$f":"IFERROR(K20*(K12)*K23,\"\")","v":0},0,0,0,0,null,null,null,null,null,null,null,null,null,null,null,null,null,24,"","",null,null,null,null,"","",null,null,null,null,null," ",24,"","",null,null,null,null,"",""]
[null,null,null,null,null,"ŠESD kiekio pokytis (kt CO2 ekv.)",null,null,null,null,null,null,null,null,null,null,null,null,null,null,null,null,null,null,null,null,null,null,25,"",{"$f":"IFERROR(SMALL(AD$3:AD$27,AC27),\"\")","v":""},null,null,null,null,"","",null,null,null,null,null," ",25,"",{"$f":"IFERROR(SMALL(AS$3:AS$27,AR27),\"\")","v":""}," ",null," "," ","",""," "]
[null,null,null,null,null,"Kaupiamasis ŠESD kiekio pokytis (kt CO2 ekv.)","Rezultatai",{"$f":"IFERROR(H26,0)","v":0},{"$f":"IFERROR(H28+I26, 0)","v":0},{"$f":"IFERROR(J26, 0)","v":0},{"$f":"IFERROR(J28+K26, 0)","v":0},0,0,0,0]
[]
[null,null,null,null,null,"Suminis ŠESD kiekio pokytis (kt CO2 ekv.)",null,null,null,{"$f":"SUM(J26:O26)","v":0}]
[null,null,null,null,null,null,null,null,null,null,null,null,null,null,null,null,null,null,null,null,null,null,null,null,"Duomenys \"helper\" stulpeliams",null,null,"Helper stulpeliai",null,null,null,null,"Degalų rušies dropdown'ui. Pagal H3 stulpelį suranda kokios kuro rūšis aktualios TP klasei",null,null,null,null,null,null,"Duomenys \"helper\" stulpeliams",null,null,"Helper stulpeliai",null," "," "," ","Degalų rušies dropdown'ui. Pagal H3 stulpelį suranda kokios kuro rūšis aktualios TP klasei"]
[null,null,null,null,null,null,null,null,null,null,null,null,null,null,null,null,null,null,null,null,null,null,null,null,"Priemonės tipas","Kuro tipas","kt CO2 eq. per metus",null,"H1","H2","H3",null,"Dropdown 2",null,null,"H2 for old vehicle CO2 eq. value","H3 for CO2 eq. value",null,null,"Priemonės tipas","Kuro tipas"," CO2 g/km "," ","H1","H2","H3",null,"Dropdown 2",null,null,"H2 for old vehicle CO2 eq. value","H3 for CO2 eq. value"]
[null,null,null,null,null,null,null,null,null,null,null,null,null,null,null,null,null,null,null,null,null,null,null,null,"M1","Benzinas",1.6000000000000001E-3,null,1,{"$f":"IF(Y33=I$8,AC33,\"\")","v":1},{"$f":"IFERROR(SMALL(AD$33:AD$57,AC33),\"\")","v":1},null,{"$f":"IFERROR(INDEX(Z$33:Z$57,AE33,COLUMNS(AG33:AG33)),\"\")","v":"Benzinas"},null,null,{"$f":"IF(AND(I$8=Y33,Z33=I$11),AC33,\"\")","v":""},{"$f":"IFERROR(SMALL(AJ$33:AJ$57,AC33),\"\")","v":4},null,null,"M1","Benzinas",166.59," ",1,{"$f":"IF(AN33=I$8,AR33,\"\")","v":1},{"$f":"IFERROR(SMALL(AS$33:AS$57,AR33),\"\")","v":1},null,{"$f":"IFERROR(INDEX(AO$33:AO$57,AT33,COLUMNS(AV33)),\"\")","v":"Benzinas"},null,null,{"$f":"IF(AND(I$8=AN33,AO33=I$11),AR33,\"\")","v":""},{"$f":"IFERROR(SMALL(AY$33:AY$57,AR33),\"\")","v":4}]
[null,null,null,null,null,null,null,null,null,null,null,null,null,null,null,null,null,null,null,null,null,null,null,null,"M1","Suskystintos naftos dujos",2.5999999999999999E-3,null,2,2,{"$f":"IFERROR(SMALL(AD$33:AD$57,AC34),\"\")","v":2},null,{"$f":"IFERROR(INDEX(Z$33:Z$57,AE34,COLUMNS(AG34:AG34)),\"\")","v":"Suskystintos naftos dujos"},null,null,"",{"$f":"IFERROR(SMALL(AJ$33:AJ$57,AC34),\"\")","v":""},null,null,"M1","Suskystintos naftos dujos",234.22," ",2,2,{"$f":"IFERROR(SMALL(AS$33:AS$57,AR34),\"\")","v":2},null,{"$f":"IFERROR(INDEX(AO$33:AO$57,AT34,COLUMNS(AV34)),\"\")","v":"Suskystintos naftos dujos"},null,null,"",{"$f":"IFERROR(SMALL(AY$33:AY$57,AR34),\"\")","v":""}]
[null,null,null,null,null,null,null,null,null,null,null,null,null,null,null,null,null,null,null,null,null,null,null,null,null,null,null,null,3,"",4,null,{"$f":"IFERROR(INDEX(Z$33:Z$57,AE35,COLUMNS(AG35:AG35)),\"\")","v":"Dyzelinas"},null,null,"","",null,null,null,null,null," ",3,"",4,null,{"$f":"IFERROR(INDEX(AO$33:AO$57,AT35,COLUMNS(AV35)),\"\")","v":"Dyzelinas"},null,null,"",""]
[null,null,null,null,null,null,null,null,null,null,null,null,null,null,null,null,null,null,null,null,null,null,null,null,"M1","Dyzelinas",1.9E-3,null,4,4,5,null,{"$f":"IFERROR(INDEX(Z$33:Z$57,AE36,COLUMNS(AG36:AG36)),\"\")","v":"Vidutinis taršus automobilis"},null,null,4,"",null,null,"M1","Dyzelinas",144.72," ",4,4,5,null,{"$f":"IFERROR(INDEX(AO$33:AO$57,AT36,COLUMNS(AV36)),\"\")","v":"Vidutinis taršus automobilis"},null,null,4,""]
[null,null,null,null,null,null,null,null,null,null,null,null,null,null,null,null,null,null,null,null,null,null,null,null,"M1","Vidutinis taršus automobilis",1.9E-3,null,5,5,"",null,{"$f":"IFERROR(INDEX(Z$33:Z$57,AE37,COLUMNS(AG37:AG37)),\"\")","v":""},null,null,"","",null,null,"M1","Vidutinis taršus automobilis",153.76," ",5,5,"",null,{"$f":"IFERROR(INDEX(AO$33:AO$57,AT37,COLUMNS(AV37)),\"\")","v":""},null,null,"",""]
[null,null,null,null,null,null,null,null,null,null,null,null,null,null,null,null,null,null,null,null,null,null,null,null,null,null,null,null,6,"","",null,{"$f":"IFERROR(INDEX(Z$33:Z$57,AE38,COLUMNS(AG38:AG38)),\"\")","v":""},null,null,"","",null,null,null,null,null," ",6,"","",null,{"$f":"IFERROR(INDEX(AO$33:AO$57,AT38,COLUMNS(AV38)),\"\")","v":""},null,null,"",""]
[null,null,null,null,null,null,null,null,null,null,null,null,null,null,null,null,null,null,null,null,null,null,null,null,"M2","Dyzelinas",1.5599999999999999E-2,null,7,"","",null,{"$f":"IFERROR(INDEX(Z$33:Z$57,AE39,COLUMNS(AG39:AG39)),\"\")","v":""},null,null,"","",null,null,"M2","Dyzelinas",510.29," ",7,"","",null,{"$f":"IFERROR(INDEX(AO$33:AO$57,AT39,COLUMNS(AV39)),\"\")","v":""},null,null,"",""]
[null,null,null,null,null,null,null,null,null,null,null,null,null,null,null,null,null,null,null,null,null,null,null,null,null,null,null,null,8,"","",null,{"$f":"IFERROR(INDEX(Z$33:Z$57,AE40,COLUMNS(AG40:AG40)),\"\")","v":""},null,null,"","",null,null,null,null,null," ",8,"","",null,{"$f":"IFERROR(INDEX(AO$33:AO$57,AT40,COLUMNS(AV40)),\"\")","v":""},null,null,"",""]
[null,null,null,null,null,null,null,null,null,null,null,null,null,null,null,null,null,null,null,null,null,null,null,null,null,null,null,null,9,"","",null,{"$f":"IFERROR(INDEX(Z$33:Z$57,AE41,COLUMNS(AG41:AG41)),\"\")","v":""},null,null,"","",null,null,null,null,null," ",9,"","",null,{"$f":"IFERROR(INDEX(AO$33:AO$57,AT41,COLUMNS(AV41)),\"\")","v":""},null,null,"",""]
[null,null,null,null,null,null,null,null,null,null,null,null,null,null,null,null,null,null,null,null,null,null,null,null,"M3","Dyzelinas",8.8499999999999995E-2,null,10,"","",null,{"$f":"IFERROR(INDEX(Z$33:Z$57,AE42,COLUMNS(AG42:AG42)),\"\")","v":""},null,null,"","",null,null,"M3","Dyzelinas",1952.77," ",10,"","",null,{"$f":"IFERROR(INDEX(AO$33:AO$57,AT42,COLUMNS(AV42)),\"\")","v":""},null,null,"",""]
[null,null,null,null,null,null,null,null,null,null,null,null,null,null,null,null,null,null,null,null,null,null,null,null,null,null,null,null,11,"","",null,{"$f":"IFERROR(INDEX(Z$33:Z$57,AE43,COLUMNS(AG43:AG43)),\"\")","v":""},null,null,"","",null,null,null,null,null," ",11,"","",null,{"$f":"IFERROR(INDEX(AO$33:AO$57,AT43,COLUMNS(AV43)),\"\")","v":""},null,null,"",""]
[null,null,null,null,null,null,null,null,null,null,null,null,null,null,null,null,null,null,null,null,null,null,null,null,null,null,null,null,12,"","",null,{"$f":"IFERROR(INDEX(Z$33:Z$57,AE44,COLUMNS(AG44:AG44)),\"\")","v":""},null,null,"","",null,null,null,null,null," ",12,"","",null,{"$f":"IFERROR(INDEX(AO$33:AO$57,AT44,COLUMNS(AV44)),\"\")","v":""},null,null,"",""]
[null,null,null,null,null,null,null,null,null,null,null,null,null,null,null,null,null,null,null,null,null,null,null,null,"N1","Benzinas",3.5000000000000001E-3,null,13,"","",null,{"$f":"IFERROR(INDEX(Z$33:Z$57,AE45,COLUMNS(AG45:AG45)),\"\")","v":""},null,null,"","",null,null,"N1","Benzinas",270.93," ",13,"","",null,{"$f":"IFERROR(INDEX(AO$33:AO$57,AT45,COLUMNS(AV45)),\"\")","v":""},null,null,"",""]
[null,null,null,null,null,null,null,null,null,null,null,null,null,null,null,null,null,null,null,null,null,null,null,null,"N1","Suskystintos naftos dujos",4.5999999999999999E-3,null,14,"","",null,{"$f":"IFERROR(INDEX(Z$33:Z$57,AE46,COLUMNS(AG46:AG46)),\"\")","v":""},null,null,"","",null,null,"N1","Suskystintos naftos dujos",354.36," ",14,"","",null,{"$f":"IFERROR(INDEX(AO$33:AO$57,AT46,COLUMNS(AV46)),\"\")","v":""},null,null,"",""]
[null,null,null,null,null,"* Prognozė (ekspertinis vertinimas, Aplinkos apsaugos agentūra, 2025 m.)",null,null,null,null,null,null,null,null,null,null,null,null,null,null,null,null,null,null,"N1","Dyzelinas",3.7000000000000002E-3,null,15,"","",null,{"$f":"IFERROR(INDEX(Z$33:Z$57,AE47,COLUMNS(AG47:AG47)),\"\")","v":""},null,null,"","",null,null,"N1","Dyzelinas",175.92," ",15,"","",null,{"$f":"IFERROR(INDEX(AO$33:AO$57,AT47,COLUMNS(AV47)),\"\")","v":""},null,null,"",""]
[null,null,null,null,null,"**Jei norima reguliuoti kelionėje sunaudojamus degalus, jų sumažinimą (%) reikia įvesti į 20-ą eilutę (projektinio CO2 kiekio (g/km) duomenų įvesti nereikia).",null,null,null,null,null,null,null,null,null,null,null,null,null,null,null,null,null,null,"N1","Vidutinis taršus automobilis",3.7000000000000002E-3,null,16,"","",null,{"$f":"IFERROR(INDEX(Z$33:Z$57,AE48,COLUMNS(AG48:AG48)),\"\")","v":""},null,null,"","",null,null,"N1","Vidutinis taršus automobilis",178.14," ",16,"","",null,{"$f":"IFERROR(INDEX(AO$33:AO$57,AT48,COLUMNS(AV48)),\"\")","v":""},null,null,"",""]
[null,null,null,null,null,null,null,null,null,null,null,null,null,null,null,null,null,null,null,null,null,null,null,null,null,null,null,null,17,"","",null,{"$f":"IFERROR(INDEX(Z$33:Z$57,AE49,COLUMNS(AG49:AG49)),\"\")","v":""},null,null,"","",null,null,null,null,null," ",17,"","",null,{"$f":"IFERROR(INDEX(AO$33:AO$57,AT49,COLUMNS(AV49)),\"\")","v":""},null,null,"",""]
[null,null,null,null,null,null,null,null,null,null,null,null,null,null,null,null,null,null,null,null,null,null,null,null,"N2","Benzinas",5.1000000000000004E-3,null,18,"","",null,{"$f":"IFERROR(INDEX(Z$33:Z$57,AE50,COLUMNS(AG50:AG50)),\"\")","v":""},null,null,"","",null,null,"N2","Benzinas",1123.67," ",18,"","",null,{"$f":"IFERROR(INDEX(AO$33:AO$57,AT50,COLUMNS(AV50)),\"\")","v":""},null,null,"",""]
[null,null,null,null,null,null,null,null,null,null,null,null,null,null,null,null,null,null,null,null,null,null,null,null,"N2","Suskystintos naftos dujos",7.9000000000000008E-3,null,19,"","",null,{"$f":"IFERROR(INDEX(Z$3:Z$26,AE51,COLUMNS(AG51:AG51)),\"\")","v":""},null,null,"","",null,null,"N2","Suskystintos naftos dujos",456.95," ",19,"","",null,{"$f":"IFERROR(INDEX(AO$33:AO$57,AT51,COLUMNS(AV51)),\"\")","v":""},null,null,"",""]
[null,null,null,null,null,null,null,null,null,null,null,null,null,null,null,null,null,null,null,null,null,null,null,null,"N2","Dyzelinas",7.1999999999999998E-3,null,20,"","",null,null,null,null,"","",null,null,"N2","Dyzelinas",302.81," ",20,"","",null,null,null,null,"",""]
[null,null,null,null,null,null,null,null,null,null,null,null,null,null,null,null,null,null,null,null,null,null,null,null,null,null,null,null,21,"",{"$f":"IFERROR(SMALL(AD$33:AD$57,AC53),\"\")","v":""},null,null,null,null,"","",null,null,null,null,null," ",21,"","",null,null,null,null,"",""]
[null,null,null,null,null,null,null,null,null,null,null,null,null,null,null,null,null,null,null,null,null,null,null,null,"N2","Vidutinis taršus automobilis",8.0000000000000002E-3,null,22,"","",null,null,null,null,"","",null,null,"N2","Vidutinis taršus automobilis",579.85," ",22,"","",null,null,null,null,"",""]
[null,null,null,null,null,null,null,null,null,null,null,null,null,null,null,null,null,null,null,null,null,null,null,null,"N3","Dyzelinas",2.1700000000000001E-2,null,23,"","",null,null,null,null,"","",null,null,"N3","Dyzelinas",571.69000000000005," ",23,"","",null,null,null,null,"",""]
[null,null,null,null,null,null,null,null,null,null,null,null,null,null,null,null,null,null,null,null,null,null,null,null,null,null,null,null,24,"","",null,null,null,null,"","",null,null,null,null,null," ",24,"","",null,null,null,null,"",""]
[null,null,null,null,null,null,null,null,null,null,null,null,null,null,null,null,null,null,null,null,null,null,null,null,null,null,null,null,25,"",{"$f":"IFERROR(SMALL(AD$33:AD$57,AC57),\"\")","v":""},null,null,null,null,"","",null,null,null,null,null," ",25,"",{"$f":"IFERROR(SMALL(AS$33:AS$57,AR57),\"\")","v":""}," ",null," "," ","",""," "]
[]
[]
[]
[]
[null,null,null,null,null,null,null,null,null,null,null,null,null,null,null,null,null,null,null,null,null,null,null,null,"Duomenys \"helper\" stulpeliams",null,null,"Helper stulpeliai",null,null,null,null,"Degalų rūšies dropdown'ui. Pagal H3 stulpelį suranda kokios kuro rūšis aktualios TP klasei",null,null,null,null,null,null,"Duomenys \"helper\" stulpeliams",null,null,"Helper stulpeliai",null," "," "," ","Degalų rušies dropdown'ui. Pagal H3 stulpelį suranda kokios kuro rūšis aktualios TP klasei"]
[null,null,null,null,null,null,null,null,null,null,null,null,null,null,null,null,null,null,null,null,null,null,null,null,"Priemonės tipas","Kuro tipas","kt CO2 eq. per metus",null,"H1","H2","H3",null,"Dropdown 2",null,null,"H2 for old vehicle CO2 eq. value","H3 for CO2 eq. value",null,null,"Priemonės tipas","Kuro tipas"," CO2 g/km "," ","H1","H2","H3",null,"Dropdown 2",null,null,"H2 for old vehicle CO2 eq. value","H3 for CO2 eq. value"]
[null,null,null,null,null,null,null,null,null,null,null,null,null,null,null,null,null,null,null,null,null,null,null,null,"M1","Benzinas",1.5E-3,null,1,{"$f":"IF(Y64=J$8,AC64,\"\")","v":""},{"$f":"IFERROR(SMALL(AD$64:AD$88,AC64),\"\")","v":18},null,{"$f":"IFERROR(INDEX(Z$64:Z$88,AE64,COLUMNS(AG64:AG64)),\"\")","v":"Benzinas"},null,null,{"$f":"IF(AND(J$8=Y64,Z64=J$11),AC64,\"\")","v":""},{"$f":"IFERROR(SMALL(AJ$64:AJ$88,AC64),\"\")","v":20},null,null,"M1","Benzinas",164.45," ",1,{"$f":"IF(AN64=J$8,AR64,\"\")","v":""},{"$f":"IFERROR(SMALL(AS$64:AS$88,AR64),\"\")","v":18},null,{"$f":"IFERROR(INDEX(AO$64:AO$88,AT64,COLUMNS(AV64)),\"\")","v":"Benzinas"},null,null,{"$f":"IF(AND(J$8=AN64,AO64=J$11),AR64,\"\")","v":""},{"$f":"IFERROR(SMALL(AY$64:AY$88,AR64),\"\")","v":20}]
[null,null,null,null,null,null,null,null,null,null,null,null,null,null,null,null,null,null,null,null,null,null,null,null,"M1","Suskystintos naftos dujos",2.7000000000000001E-3,null,2,"",{"$f":"IFERROR(SMALL(AD$64:AD$88,AC65),\"\")","v":19},null,{"$f":"IFERROR(INDEX(Z$64:Z$88,AE65,COLUMNS(AG65:AG65)),\"\")","v":"Suskystintos naftos dujos"},null,null,"",{"$f":"IFERROR(SMALL(AJ$64:AJ$88,AC65),\"\")","v":""},null,null,"M1","Suskystintos naftos dujos",236.53," ",2,"",{"$f":"IFERROR(SMALL(AS$64:AS$88,AR65),\"\")","v":19},null,{"$f":"IFERROR(INDEX(AO$64:AO$88,AT65,COLUMNS(AV65)),\"\")","v":"Suskystintos naftos dujos"},null,null,"",{"$f":"IFERROR(SMALL(AY$64:AY$88,AR65),\"\")","v":""}]
[null,null,null,null,null,null,null,null,null,null,null,null,null,null,null,null,null,null,null,null,null,null,null,null,null,null,null,null,3,"",20,null,{"$f":"IFERROR(INDEX(Z$64:Z$88,AE66,COLUMNS(AG66:AG66)),\"\")","v":"Dyzelinas"},null,null,"","",null,null,null,null,null," ",3,"",20,null,{"$f":"IFERROR(INDEX(AO$64:AO$88,AT66,COLUMNS(AV66)),\"\")","v":"Dyzelinas"},null,null,"",""]
[null,null,null,null,null,null,null,null,null,null,null,null,null,null,null,null,null,null,null,null,null,null,null,null,"M1","Dyzelinas",1.9E-3,null,4,"",{"$f":"IFERROR(SMALL(AD$64:AD$88,AC67),\"\")","v":22},null,{"$f":"IFERROR(INDEX(Z$64:Z$88,AE67,COLUMNS(AG67:AG67)),\"\")","v":"Vidutinis taršus automobilis"},null,null,"","",null,null,"M1","Dyzelinas",140.9," ",4,"",22,null,{"$f":"IFERROR(INDEX(AO$64:AO$88,AT67,COLUMNS(AV67)),\"\")","v":"Vidutinis taršus automobilis"},null,null,"",""]
[null,null,null,null,null,null,null,null,null,null,null,null,null,null,null,null,null,null,null,null,null,null,null,null,"M1","Vidutinis taršus automobilis",1.9E-3,null,5,"",{"$f":"IFERROR(SMALL(AD$64:AD$88,AC68),\"\")","v":""},null,{"$f":"IFERROR(INDEX(Z$64:Z$88,AE68,COLUMNS(AG68:AG68)),\"\")","v":""},null,null,"","",null,null,"M1","Vidutinis taršus automobilis",149.78," ",5,"","",null,{"$f":"IFERROR(INDEX(AO$64:AO$88,AT68,COLUMNS(AV68)),\"\")","v":""},null,null,"",""]
[null,null,null,null,null,null,null,null,null,null,null,null,null,null,null,null,null,null,null,null,null,null,null,null,null,null,null,null,6,"","",null,{"$f":"IFERROR(INDEX(Z$64:Z$88,AE69,COLUMNS(AG69:AG69)),\"\")","v":""},null,null,"","",null,null,null,null,null," ",6,"","",null,{"$f":"IFERROR(INDEX(AO$64:AO$88,AT69,COLUMNS(AV69)),\"\")","v":""},null,null,"",""]
[null,null,null,null,null,null,null,null,null,null,null,null,null,null,null,null,null,null,null,null,null,null,null,null,"M2","Dyzelinas",1.5599999999999999E-2,null,7,"","",null,{"$f":"IFERROR(INDEX(Z$64:Z$88,AE70,COLUMNS(AG70:AG70)),\"\")","v":""},null,null,"","",null,null,"M2","Dyzelinas",510.29," ",7,"","",null,{"$f":"IFERROR(INDEX(AO$64:AO$88,AT70,COLUMNS(AV70)),\"\")","v":""},null,null,"",""]
[null,null,null,null,null,null,null,null,null,null,null,null,null,null,null,null,null,null,null,null,null,null,null,null,null,null,null,null,8,"","",null,{"$f":"IFERROR(INDEX(Z$64:Z$88,AE71,COLUMNS(AG71:AG71)),\"\")","v":""},null,null,"","",null,null,null,null,null," ",8,"","",null,{"$f":"IFERROR(INDEX(AO$64:AO$88,AT71,COLUMNS(AV71)),\"\")","v":""},null,null,"",""]
[null,null,null,null,null,null,null,null,null,null,null,null,null,null,null,null,null,null,null,null,null,null,null,null,null,null,null,null,9,"","",null,{"$f":"IFERROR(INDEX(Z$64:Z$88,AE72,COLUMNS(AG72:AG72)),\"\")","v":""},null,null,"","",null,null,null,null,null," ",9,"","",null,{"$f":"IFERROR(INDEX(AO$64:AO$88,AT72,COLUMNS(AV72)),\"\")","v":""},null,null,"",""]
[null,null,null,null,null,null,null,null,null,null,null,null,null,null,null,null,null,null,null,null,null,null,null,null,"M3","Dyzelinas",8.8499999999999995E-2,null,10,"","",null,{"$f":"IFERROR(INDEX(Z$64:Z$88,AE73,COLUMNS(AG73:AG73)),\"\")","v":""},null,null,"","",null,null,"M3","Dyzelinas",1952.77," ",10,"","",null,{"$f":"IFERROR(INDEX(AO$64:AO$88,AT73,COLUMNS(AV73)),\"\")","v":""},null,null,"",""]
[null,null,null,null,null,null,null,null,null,null,null,null,null,null,null,null,null,null,null,null,null,null,null,null,null,null,null,null,11,"","",null,{"$f":"IFERROR(INDEX(Z$64:Z$88,AE74,COLUMNS(AG74:AG74)),\"\")","v":""},null,null,"","",null,null,null,null,null," ",11,"","",null,{"$f":"IFERROR(INDEX(AO$64:AO$88,AT74,COLUMNS(AV74)),\"\")","v":""},null,null,"",""]
[null,null,null,null,null,null,null,null,null,null,null,null,null,null,null,null,null,null,null,null,null,null,null,null,null,null,null,null,12,"","",null,{"$f":"IFERROR(INDEX(Z$64:Z$88,AE75,COLUMNS(AG75:AG75)),\"\")","v":""},null,null,"","",null,null,null,null,null," ",12,"","",null,{"$f":"IFERROR(INDEX(AO$64:AO$88,AT75,COLUMNS(AV75)),\"\")","v":""},null,null,"",""]
[null,null,null,null,null,null,null,null,null,null,null,null,null,null,null,null,null,null,null,null,null,null,null,null,"N1","Benzinas",3.5000000000000001E-3,null,13,"","",null,{"$f":"IFERROR(INDEX(Z$64:Z$88,AE76,COLUMNS(AG76:AG76)),\"\")","v":""},null,null,"","",null,null,"N1","Benzinas",269.57," ",13,"","",null,{"$f":"IFERROR(INDEX(AO$64:AO$88,AT76,COLUMNS(AV76)),\"\")","v":""},null,null,"",""]
[null,null,null,null,null,null,null,null,null,null,null,null,null,null,null,null,null,null,null,null,null,null,null,null,"N1","Suskystintos naftos dujos",4.5999999999999999E-3,null,14,"","",null,{"$f":"IFERROR(INDEX(Z$64:Z$88,AE77,COLUMNS(AG77:AG77)),\"\")","v":""},null,null,"","",null,null,"N1","Suskystintos naftos dujos",354.36," ",14,"","",null,{"$f":"IFERROR(INDEX(AO$64:AO$88,AT77,COLUMNS(AV77)),\"\")","v":""},null,null,"",""]
[null,null,null,null,null,null,null,null,null,null,null,null,null,null,null,null,null,null,null,null,null,null,null,null,"N1","Dyzelinas",3.5000000000000001E-3,null,15,"","",null,{"$f":"IFERROR(INDEX(Z$64:Z$88,AE78,COLUMNS(AG78:AG78)),\"\")","v":""},null,null,"","",null,null,"N1","Dyzelinas",170.73," ",15,"","",null,{"$f":"IFERROR(INDEX(AO$64:AO$88,AT78,COLUMNS(AV78)),\"\")","v":""},null,null,"",""]
[null,null,null,null,null,null,null,null,null,null,null,null,null,null,null,null,null,null,null,null,null,null,null,null,"N1","Vidutinis taršus automobilis",3.5000000000000001E-3,null,16,"","",null,{"$f":"IFERROR(INDEX(Z$64:Z$88,AE79,COLUMNS(AG79:AG79)),\"\")","v":""},null,null,"","",null,null,"N1","Vidutinis taršus automobilis",173.11," ",16,"","",null,{"$f":"IFERROR(INDEX(AO$64:AO$88,AT79,COLUMNS(AV79)),\"\")","v":""},null,null,"",""]
[null,null,null,null,null,null,null,null,null,null,null,null,null,null,null,null,null,null,null,null,null,null,null,null,null,null,null,null,17,"","",null,{"$f":"IFERROR(INDEX(Z$64:Z$88,AE80,COLUMNS(AG80:AG80)),\"\")","v":""},null,null,"","",null,null,null,null,null," ",17,"","",null,{"$f":"IFERROR(INDEX(AO$64:AO$88,AT80,COLUMNS(AV80)),\"\")","v":""},null,null,"",""]
[null,null,null,null,null,null,null,null,null,null,null,null,null,null,null,null,null,null,null,null,null,null,null,null,"N2","Benzinas",5.1000000000000004E-3,null,18,18,"",null,{"$f":"IFERROR(INDEX(Z$64:Z$88,AE81,COLUMNS(AG81:AG81)),\"\")","v":""},null,null,"","",null,null,"N2","Benzinas",1123.67," ",18,18,"",null,{"$f":"IFERROR(INDEX(AO$64:AO$88,AT81,COLUMNS(AV81)),\"\")","v":""},null,null,"",""]
[null,null,null,null,null,null,null,null,null,null,null,null,null,null,null,null,null,null,null,null,null,null,null,null,"N2","Suskystintos naftos dujos",7.9000000000000008E-3,null,19,19,"",null,{"$f":"IFERROR(INDEX(Z$64:Z$88,AE82,COLUMNS(AG82:AG82)),\"\")","v":""},null,null,"","",null,null,"N2","Suskystintos naftos dujos",456.95," ",19,19,"",null,{"$f":"IFERROR(INDEX(AO$64:AO$88,AT82,COLUMNS(AV82)),\"\")","v":""},null,null,"",""]
[null,null,null,null,null,null,null,null,null,null,null,null,null,null,null,null,null,null,null,null,null,null,null,null,"N2","Dyzelinas",6.8999999999999999E-3,null,20,20,"",null,null,null,null,20,"",null,null,"N2","Dyzelinas",291.27," ",20,20,"",null,null,null,null,20,""]
[null,null,null,null,null,null,null,null,null,null,null,null,null,null,null,null,null,null,null,null,null,null,null,null,null,null,null,null,21,"","",null,null,null,null,"","",null,null,null,null,null," ",21,"","",null,null,null,null,"",""]
[null,null,null,null,null,null,null,null,null,null,null,null,null,null,null,null,null,null,null,null,null,null,null,null,"N2","Vidutinis taršus automobilis",7.7999999999999996E-3,null,22,22,"",null,null,null,null,"","",null,null,"N2","Vidutinis taršus automobilis",571.51," ",22,22,"",null,null,null,null,"",""]
[null,null,null,null,null,null,null,null,null,null,null,null,null,null,null,null,null,null,null,null,null,null,null,null,"N3","Dyzelinas",2.1100000000000001E-2,null,23,"","",null,null,null,null,"","",null,null,"N3","Dyzelinas",556.48," ",23,"","",null,null,null,null,"",""]
[null,null,null,null,null,null,null,null,null,null,null,null,null,null,null,null,null,null,null,null,null,null,null,null,null,null,null,null,24,"","",null,null,null,null,"","",null,null,null,null,null," ",24,"","",null,null,null,null,"",""]
[null,null,null,null,null,null,null,null,null,null,null,null,null,null,null,null,null,null,null,null,null,null,null,null,null,null,null,null,25,"",{"$f":"IFERROR(SMALL(AD$64:AD$88,AC88),\"\")","v":""},null,null,null,null,"","",null,null,null,null,null," ",25,"",""," ",null," "," ","",""," "]
[]
[]
[]
[null,null,null,null,null,null,null,null,null,null,null,null,null,null,null,null,null,null,null,null,null,null,null,null,"Duomenys \"helper\" stulpeliams",null,null,"Helper stulpeliai",null," "," "," ","Degalų rušies dropdown'ui. Pagal H3 stulpelį suranda kokios kuro rūšis aktualios TP klasei",null,null," "," "," ",null,"Duomenys \"helper\" stulpeliams",null,null,"Helper stulpeliai",null," "," "," ","Degalų rušies dropdown'ui. Pagal H3 stulpelį suranda kokios kuro rūšis aktualios TP klasei"]
[null,null,null,null,null,null,null,null,null,null,null,null,null,null,null,null,null,null,null,null,null,null,null,null,"Priemonės tipas","Kuro tipas"," kt CO2 eq. per metus "," ","H1","H2","H3",null,"Dropdown 2",null,null,"H2 for old vehicle CO2 eq. value","H3 for CO2 eq. value",null,null,"Priemonės tipas","Kuro tipas"," CO2 g/km "," ","H1","H2","H3",null,"Dropdown 2",null,null,"H2 for old vehicle CO2 eq. value","H3 for CO2 eq. value"]
[null,null,null,null,null,null,null,null,null,null,null,null,null,null,null,null,null,null,null,null,null,null,null,null,"M1","Benzinas",1.5E-3," ",1,{"$f":"IF(Y94=K$8,AC94,\"\")","v":""},{"$f":"IFERROR(SMALL(AD$94:AD$118,AC94),\"\")","v":18},null,{"$f":"IFERROR(INDEX(Z$94:Z$118,AE94,COLUMNS(AG94)),\"\")","v":"Benzinas"},null,null,{"$f":"IF(AND(K$8=Y94,Z94=K$11),AC94,\"\")","v":""},{"$f":"IFERROR(SMALL(AJ$94:AJ$118,AC94),\"\")","v":20},null,null,"M1","Benzinas",162.36000000000001," ",1,{"$f":"IF(AN94=K$8,AR94,\"\")","v":""},{"$f":"IFERROR(SMALL(AS$94:AS$118,AR94),\"\")","v":18},null,{"$f":"IFERROR(INDEX(AO$94:AO$118,AT94,COLUMNS(AV95)),\"\")","v":"Benzinas"},null,null,{"$f":"IF(AND(K$8=AN94,AO94=K$11),AR94,\"\")","v":""},{"$f":"IFERROR(SMALL(AY$94:AY$118,AR94),\"\")","v":20}]
[null,null,null,null,null,null,null,null,null,null,null,null,null,null,null,null,null,null,null,null,null,null,null,null,"M1","Suskystintos naftos dujos",2.7000000000000001E-3," ",2,"",{"$f":"IFERROR(SMALL(AD$94:AD$118,AC95),\"\")","v":19},null,{"$f":"IFERROR(INDEX(Z$94:Z$118,AE95,COLUMNS(AG95)),\"\")","v":"Suskystintos naftos dujos"},null,null,"",null,null,null,"M1","Suskystintos naftos dujos",236.68," ",2,"",19,null,{"$f":"IFERROR(INDEX(AO$94:AO$118,AT95,COLUMNS(AV96)),\"\")","v":"Suskystintos naftos dujos"},null,null,"",""]
[null,null,null,null,null,null,null,null,null,null,null,null,null,null,null,null,null,null,null,null,null,null,null,null,null,null,null," ",3,"",20,null,{"$f":"IFERROR(INDEX(Z$94:Z$118,AE96,COLUMNS(AG96)),\"\")","v":"Dyzelinas"},null,null,"",null,null,null,null,null,null," ",3,"",20,null,{"$f":"IFERROR(INDEX(AO$94:AO$118,AT96,COLUMNS(AV97)),\"\")","v":"Dyzelinas"},null,null,"",""]
[null,null,null,null,null,null,null,null,null,null,null,null,null,null,null,null,null,null,null,null,null,null,null,null,"M1","Dyzelinas",1.8E-3," ",4,"",22,null,{"$f":"IFERROR(INDEX(Z$94:Z$118,AE97,COLUMNS(AG97)),\"\")","v":"Vidutinis taršus automobilis"},null,null,"",null,null,null,"M1","Dyzelinas",136.65," ",4,"",22,null,{"$f":"IFERROR(INDEX(AO$94:AO$118,AT97,COLUMNS(AV98)),\"\")","v":"Vidutinis taršus automobilis"},null,null,"",""]
[null,null,null,null,null,null,null,null,null,null,null,null,null,null,null,null,null,null,null,null,null,null,null,null,"M1","Vidutinis taršus automobilis",1.8E-3," ",5,"","",null,{"$f":"IFERROR(INDEX(Z$94:Z$118,AE98,COLUMNS(AG98)),\"\")","v":""},null,null,"",null,null,null,"M1","Vidutinis taršus automobilis",146.05000000000001," ",5,"","",null,{"$f":"IFERROR(INDEX(AO$94:AO$118,AT98,COLUMNS(AV99)),\"\")","v":""},null,null,"",""]
[null,null,null,null,null,null,null,null,null,null,null,null,null,null,null,null,null,null,null,null,null,null,null,null,null,null,null," ",6,"","",null,{"$f":"IFERROR(INDEX(Z$94:Z$118,AE99,COLUMNS(AG99)),\"\")","v":""},null,null,"",null,null,null,null,null,null," ",6,"","",null,{"$f":"IFERROR(INDEX(AO$94:AO$118,AT99,COLUMNS(AV100)),\"\")","v":""},null,null,"",""]
[null,null,null,null,null,null,null,null,null,null,null,null,null,null,null,null,null,null,null,null,null,null,null,null,"M2","Dyzelinas",1.5599999999999999E-2," ",7,"","",null,{"$f":"IFERROR(INDEX(Z$94:Z$118,AE100,COLUMNS(AG100)),\"\")","v":""},null,null,"",null,null,null,"M2","Dyzelinas",510.29," ",7,"","",null,{"$f":"IFERROR(INDEX(AO$94:AO$118,AT100,COLUMNS(AV101)),\"\")","v":""},null,null,"",""]
[null,null,null,null,null,null,null,null,null,null,null,null,null,null,null,null,null,null,null,null,null,null,null,null,null,null,null," ",8,"","",null,{"$f":"IFERROR(INDEX(Z$94:Z$118,AE101,COLUMNS(AG101)),\"\")","v":""},null,null,"",null,null,null,null,null,null," ",8,"","",null,{"$f":"IFERROR(INDEX(AO$94:AO$118,AT101,COLUMNS(AV102)),\"\")","v":""},null,null,"",""]
[null,null,null,null,null,null,null,null,null,null,null,null,null,null,null,null,null,null,null,null,null,null,null,null,null,null,null," ",9,"","",null,{"$f":"IFERROR(INDEX(Z$94:Z$118,AE102,COLUMNS(AG102)),\"\")","v":""},null,null,"",null,null,null,null,null,null," ",9,"","",null,{"$f":"IFERROR(INDEX(AO$94:AO$118,AT102,COLUMNS(AV103)),\"\")","v":""},null,null,"",""]
[null,null,null,null,null,null,null,null,null,null,null,null,null,null,null,null,null,null,null,null,null,null,null,null,"M3","Dyzelinas",8.8499999999999995E-2," ",10,"","",null,{"$f":"IFERROR(INDEX(Z$94:Z$118,AE103,COLUMNS(AG103)),\"\")","v":""},null,null,"",null,null,null,"M3","Dyzelinas",1952.77," ",10,"","",null,{"$f":"IFERROR(INDEX(AO$94:AO$118,AT103,COLUMNS(AV104)),\"\")","v":""},null,null,"",""]
[null,null,null,null,null,null,null,null,null,null,null,null,null,null,null,null,null,null,null,null,null,null,null,null,null,null,null," ",11,"","",null,{"$f":"IFERROR(INDEX(Z$94:Z$118,AE104,COLUMNS(AG104)),\"\")","v":""},null,null,"",null,null,null,null,null,null," ",11,"","",null,{"$f":"IFERROR(INDEX(AO$94:AO$118,AT104,COLUMNS(AV105)),\"\")","v":""},null,null,"",""]
[null,null,null,null,null,null,null,null,null,null,null,null,null,null,null,null,null,null,null,null,null,null,null,null,null,null,null," ",12,"","",null,{"$f":"IFERROR(INDEX(Z$94:Z$118,AE105,COLUMNS(AG105)),\"\")","v":""},null,null,"",null,null,null,null,null,null," ",12,"","",null,{"$f":"IFERROR(INDEX(AO$94:AO$118,AT105,COLUMNS(AV106)),\"\")","v":""},null,null,"",""]
[null,null,null,null,null,null,null,null,null,null,null,null,null,null,null,null,null,null,null,null,null,null,null,null,"N1","Benzinas",3.5000000000000001E-3," ",13,"","",null,{"$f":"IFERROR(INDEX(Z$94:Z$118,AE106,COLUMNS(AG106)),\"\")","v":""},null,null,"",null,null,null,"N1","Benzinas",268.10000000000002," ",13,"","",null,{"$f":"IFERROR(INDEX(AO$94:AO$118,AT106,COLUMNS(AV107)),\"\")","v":""},null,null,"",""]
[null,null,null,null,null,null,null,null,null,null,null,null,null,null,null,null,null,null,null,null,null,null,null,null,"N1","Suskystintos naftos dujos",4.5999999999999999E-3," ",14,"","",null,{"$f":"IFERROR(INDEX(Z$94:Z$118,AE107,COLUMNS(AG107)),\"\")","v":""},null,null,"",null,null,null,"N1","Suskystintos naftos dujos",354.36," ",14,"","",null,{"$f":"IFERROR(INDEX(AO$94:AO$118,AT107,COLUMNS(AV108)),\"\")","v":""},null,null,"",""]
[null,null,null,null,null,null,null,null,null,null,null,null,null,null,null,null,null,null,null,null,null,null,null,null,"N1","Dyzelinas",3.3999999999999998E-3," ",15,"","",null,{"$f":"IFERROR(INDEX(Z$94:Z$118,AE108,COLUMNS(AG108)),\"\")","v":""},null,null,"",null,null,null,"N1","Dyzelinas",164.97," ",15,"","",null,{"$f":"IFERROR(INDEX(AO$94:AO$118,AT108,COLUMNS(AV109)),\"\")","v":""},null,null,"",""]
[null,null,null,null,null,null,null,null,null,null,null,null,null,null,null,null,null,null,null,null,null,null,null,null,"N1","Vidutinis taršus automobilis",3.3999999999999998E-3," ",16,"","",null,{"$f":"IFERROR(INDEX(Z$94:Z$118,AE109,COLUMNS(AG109)),\"\")","v":""},null,null,"",null,null,null,"N1","Vidutinis taršus automobilis",167.48," ",16,"","",null,{"$f":"IFERROR(INDEX(AO$94:AO$118,AT109,COLUMNS(AV110)),\"\")","v":""},null,null,"",""]
[null,null,null,null,null,null,null,null,null,null,null,null,null,null,null,null,null,null,null,null,null,null,null,null,null,null,null," ",17,"","",null,{"$f":"IFERROR(INDEX(Z$94:Z$118,AE110,COLUMNS(AG110)),\"\")","v":""},null,null,"",null,null,null,null,null,null," ",17,"","",null,{"$f":"IFERROR(INDEX(AO$94:AO$118,AT110,COLUMNS(AV111)),\"\")","v":""},null,null,"",""]
[null,null,null,null,null,null,null,null,null,null,null,null,null,null,null,null,null,null,null,null,null,null,null,null,"N2","Benzinas",5.1000000000000004E-3," ",18,18,"",null,{"$f":"IFERROR(INDEX(Z$94:Z$118,AE111,COLUMNS(AG111)),\"\")","v":""},null,null,"",null,null,null,"N2","Benzinas",1123.67," ",18,18,"",null,{"$f":"IFERROR(INDEX(AO$94:AO$118,AT111,COLUMNS(AV112)),\"\")","v":""},null,null,"",""]
[null,null,null,null,null,null,null,null,null,null,null,null,null,null,null,null,null,null,null,null,null,null,null,null,"N2","Suskystintos naftos dujos",7.9000000000000008E-3," ",19,19,"",null,{"$f":"IFERROR(INDEX(Z$94:Z$118,AE112,COLUMNS(AG112)),\"\")","v":""},null,null,"",null,null,null,"N2","Suskystintos naftos dujos",456.95," ",19,19,"",null,{"$f":"IFERROR(INDEX(AO$94:AO$118,AT112,COLUMNS(AV113)),\"\")","v":""},null,null,"",""]
[null,null,null,null,null,null,null,null,null,null,null,null,null,null,null,null,null,null,null,null,null,null,null,null,"N2","Dyzelinas",6.4999999999999997E-3," ",20,20,"",null,null,null,null,20,null,null,null,"N2","Dyzelinas",273.74," ",20,20,"",null,null,null,null,20,""]
[null,null,null,null,null,null,null,null,null,null,null,null,null,null,null,null,null,null,null,null,null,null,null,null,null,null,null," ",21,"","",null,null,null,null,"",null,null,null,null,null,null," ",21,"","",null,null,null,null,"",""]
[null,null,null,null,null,null,null,null,null,null,null,null,null,null,null,null,null,null,null,null,null,null,null,null,"N2","Vidutinis taršus automobilis",7.4000000000000003E-3," ",22,22,"",null,null,null,null,"",null,null,null,"N2","Vidutinis taršus automobilis",555.69000000000005," ",22,22,"",null,null,null,null,"",""]
[null,null,null,null,null,null,null,null,null,null,null,null,null,null,null,null,null,null,null,null,null,null,null,null,"N3","Dyzelinas",1.9800000000000002E-2," ",23,"","",null,null,null,null,"",null,null,null,"N3","Dyzelinas",522," ",23,"","",null,null,null,null,"",""]
[null,null,null,null,null,null,null,null,null,null,null,null,null,null,null,null,null,null,null,null,null,null,null,null,null,null,null," ",24,"","",null,null,null,null,"",null,null,null,null,null,null," ",24,"","",null,null,null,null,"",""]
[null,null,null,null,null,null,null,null,null,null,null,null,null,null,null,null,null,null,null,null,null,null,null,null,null,null,null," ",25,"",{"$f":"IFERROR(SMALL(AD$94:AD$118,AC118),\"\")","v":""}," "," "," "," ","",null," ",null,null,null,null," ",25,"",""," ",null," "," ","",""," "]
[]
[]
[]
[null,null,null,null,null,null,null,null,null,null,null,null,null,null,null,null,null,null,null,null,null,null,null,null,"Duomenys \"helper\" stulpeliams",null,null,"Helper stulpeliai",null," "," "," ","Degalų rušies dropdown'ui. Pagal H3 stulpelį suranda kokios kuro rūšis aktualios TP klasei",null,null," "," "," ",null,"Duomenys \"helper\" stulpeliams",null,null,"Helper stulpeliai",null," "," "," ","Degalų rušies dropdown'ui. Pagal H3 stulpelį suranda kokios kuro rūšis aktualios TP klasei"]
[null,null,null,null,null,null,null,null,null,null,null,null,null,null,null,null,null,null,null,null,null,null,null,null,"Priemonės tipas","Kuro tipas"," kt CO2 eq. per metus "," ","H1","H2","H3",null,"Dropdown 2",null,null,"H2 for old vehicle CO2 eq. value","H3 for CO2 eq. value",null,null,"Priemonės tipas","Kuro tipas"," CO2 g/km "," ","H1","H2","H3",null,"Dropdown 2",null,null,"H2 for old vehicle CO2 eq. value","H3 for CO2 eq. value"]
[null,null,null,null,null,null,null,null,null,null,null,null,null,null,null,null,null,null,null,null,null,null,null,null,"M1","Benzinas",1.5E-3," ",1,{"$f":"IF(Y124=L$8,AC124,\"\")","v":""},{"$f":"IFERROR(SMALL(AD$124:AD$148,AC124),\"\")","v":18},null,{"$f":"IFERROR(INDEX(Z$124:Z$148,AE124,COLUMNS(AG124:AG124)),\"\")","v":"Benzinas"},null,null,{"$f":"IF(AND(L$8=Y124,Z124=L$11),AC124,\"\")","v":""},{"$f":"IFERROR(SMALL(AJ$124:AJ$148,AC124),\"\")","v":20},null,null,"M1","Benzinas",160.46," ",1,{"$f":"IF(AN124=L$8,AR124,\"\")","v":""},{"$f":"IFERROR(SMALL(AS$124:AS$148,AR124),\"\")","v":18},null,{"$f":"IFERROR(INDEX(AO$124:AO$148,AT124,COLUMNS(AV124)),\"\")","v":"Benzinas"},null,null,{"$f":"IF(AND(L$8=AN124,AO124=L$11),AR124,\"\")","v":""},{"$f":"IFERROR(SMALL(AY$124:AY$148,AR124),\"\")","v":20}]
[null,null,null,null,null,null,null,null,null,null,null,null,null,null,null,null,null,null,null,null,null,null,null,null,"M1","Suskystintos naftos dujos",2.7000000000000001E-3," ",2,"",{"$f":"IFERROR(SMALL(AD$124:AD$148,AC125),\"\")","v":19},null,{"$f":"IFERROR(INDEX(Z$124:Z$148,AE125,COLUMNS(AG125:AG125)),\"\")","v":"Suskystintos naftos dujos"},null,null,"",null,null,null,"M1","Suskystintos naftos dujos",239.27," ",2,"",19,null,{"$f":"IFERROR(INDEX(AO$124:AO$148,AT125,COLUMNS(AV125)),\"\")","v":"Suskystintos naftos dujos"},null,null,"",""]
[null,null,null,null,null,null,null,null,null,null,null,null,null,null,null,null,null,null,null,null,null,null,null,null,null,null,null," ",3,"",20,null,{"$f":"IFERROR(INDEX(Z$124:Z$148,AE126,COLUMNS(AG126:AG126)),\"\")","v":"Dyzelinas"},null,null,"",null,null,null,null,null,null," ",3,"",20,null,{"$f":"IFERROR(INDEX(AO$124:AO$148,AT126,COLUMNS(AV126)),\"\")","v":"Dyzelinas"},null,null,"",""]
[null,null,null,null,null,null,null,null,null,null,null,null,null,null,null,null,null,null,null,null,null,null,null,null,"M1","Dyzelinas",1.8E-3," ",4,"",22,null,{"$f":"IFERROR(INDEX(Z$124:Z$148,AE127,COLUMNS(AG127:AG127)),\"\")","v":"Vidutinis taršus automobilis"},null,null,"",null,null,null,"M1","Dyzelinas",131.63," ",4,"",22,null,{"$f":"IFERROR(INDEX(AO$124:AO$148,AT127,COLUMNS(AV127)),\"\")","v":"Vidutinis taršus automobilis"},null,null,"",""]
[null,null,null,null,null,null,null,null,null,null,null,null,null,null,null,null,null,null,null,null,null,null,null,null,"M1","Vidutinis taršus automobilis",1.8E-3," ",5,"","",null,{"$f":"IFERROR(INDEX(Z$124:Z$148,AE128,COLUMNS(AG128:AG128)),\"\")","v":""},null,null,"",null,null,null,"M1","Vidutinis taršus automobilis",141.91999999999999," ",5,"","",null,{"$f":"IFERROR(INDEX(AO$124:AO$148,AT128,COLUMNS(AV128)),\"\")","v":""},null,null,"",""]
[null,null,null,null,null,null,null,null,null,null,null,null,null,null,null,null,null,null,null,null,null,null,null,null,null,null,null," ",6,"","",null,{"$f":"IFERROR(INDEX(Z$124:Z$148,AE129,COLUMNS(AG129:AG129)),\"\")","v":""},null,null,"",null,null,null,null,null,null," ",6,"","",null,{"$f":"IFERROR(INDEX(AO$124:AO$148,AT129,COLUMNS(AV129)),\"\")","v":""},null,null,"",""]
[null,null,null,null,null,null,null,null,null,null,null,null,null,null,null,null,null,null,null,null,null,null,null,null,"M2","Dyzelinas",1.5599999999999999E-2," ",7,"","",null,{"$f":"IFERROR(INDEX(Z$124:Z$148,AE130,COLUMNS(AG130:AG130)),\"\")","v":""},null,null,"",null,null,null,"M2","Dyzelinas",510.29," ",7,"","",null,{"$f":"IFERROR(INDEX(AO$124:AO$148,AT130,COLUMNS(AV130)),\"\")","v":""},null,null,"",""]
[null,null,null,null,null,null,null,null,null,null,null,null,null,null,null,null,null,null,null,null,null,null,null,null,null,null,null," ",8,"","",null,{"$f":"IFERROR(INDEX(Z$124:Z$148,AE131,COLUMNS(AG131:AG131)),\"\")","v":""},null,null,"",null,null,null,null,null,null," ",8,"","",null,{"$f":"IFERROR(INDEX(AO$124:AO$148,AT131,COLUMNS(AV131)),\"\")","v":""},null,null,"",""]
[null,null,null,null,null,null,null,null,null,null,null,null,null,null,null,null,null,null,null,null,null,null,null,null,null,null,null," ",9,"","",null,{"$f":"IFERROR(INDEX(Z$124:Z$148,AE132,COLUMNS(AG132:AG132)),\"\")","v":""},null,null,"",null,null,null,null,null,null," ",9,"","",null,{"$f":"IFERROR(INDEX(AO$124:AO$148,AT132,COLUMNS(AV132)),\"\")","v":""},null,null,"",""]
[null,null,null,null,null,null,null,null,null,null,null,null,null,null,null,null,null,null,null,null,null,null,null,null,"M3","Dyzelinas",8.8499999999999995E-2," ",10,"","",null,{"$f":"IFERROR(INDEX(Z$124:Z$148,AE133,COLUMNS(AG133:AG133)),\"\")","v":""},null,null,"",null,null,null,"M3","Dyzelinas",1952.77," ",10,"","",null,{"$f":"IFERROR(INDEX(AO$124:AO$148,AT133,COLUMNS(AV133)),\"\")","v":""},null,null,"",""]
[null,null,null,null,null,null,null,null,null,null,null,null,null,null,null,null,null,null,null,null,null,null,null,null,null,null,null," ",11,"","",null,{"$f":"IFERROR(INDEX(Z$124:Z$148,AE134,COLUMNS(AG134:AG134)),\"\")","v":""},null,null,"",null,null,null,null,null,null," ",11,"","",null,{"$f":"IFERROR(INDEX(AO$124:AO$148,AT134,COLUMNS(AV134)),\"\")","v":""},null,null,"",""]
[null,null,null,null,null,null,null,null,null,null,null,null,null,null,null,null,null,null,null,null,null,null,null,null,null,null,null," ",12,"","",null,{"$f":"IFERROR(INDEX(Z$124:Z$148,AE135,COLUMNS(AG135:AG135)),\"\")","v":""},null,null,"",null,null,null,null,null,null," ",12,"","",null,{"$f":"IFERROR(INDEX(AO$124:AO$148,AT135,COLUMNS(AV135)),\"\")","v":""},null,null,"",""]
[null,null,null,null,null,null,null,null,null,null,null,null,null,null,null,null,null,null,null,null,null,null,null,null,"N1","Benzinas",3.3999999999999998E-3," ",13,"","",null,{"$f":"IFERROR(INDEX(Z$124:Z$148,AE136,COLUMNS(AG136:AG136)),\"\")","v":""},null,null,"",null,null,null,"N1","Benzinas",266.62," ",13,"","",null,{"$f":"IFERROR(INDEX(AO$124:AO$148,AT136,COLUMNS(AV136)),\"\")","v":""},null,null,"",""]
[null,null,null,null,null,null,null,null,null,null,null,null,null,null,null,null,null,null,null,null,null,null,null,null,"N1","Suskystintos naftos dujos",4.5999999999999999E-3," ",14,"","",null,{"$f":"IFERROR(INDEX(Z$124:Z$148,AE137,COLUMNS(AG137:AG137)),\"\")","v":""},null,null,"",null,null,null,"N1","Suskystintos naftos dujos",354.36," ",14,"","",null,{"$f":"IFERROR(INDEX(AO$124:AO$148,AT137,COLUMNS(AV137)),\"\")","v":""},null,null,"",""]
[null,null,null,null,null,null,null,null,null,null,null,null,null,null,null,null,null,null,null,null,null,null,null,null,"N1","Dyzelinas",3.3E-3," ",15,"","",null,{"$f":"IFERROR(INDEX(Z$124:Z$148,AE138,COLUMNS(AG138:AG138)),\"\")","v":""},null,null,"",null,null,null,"N1","Dyzelinas",158.51," ",15,"","",null,{"$f":"IFERROR(INDEX(AO$124:AO$148,AT138,COLUMNS(AV138)),\"\")","v":""},null,null,"",""]
[null,null,null,null,null,null,null,null,null,null,null,null,null,null,null,null,null,null,null,null,null,null,null,null,"N1","Vidutinis taršus automobilis",3.3E-3," ",16,"","",null,{"$f":"IFERROR(INDEX(Z$124:Z$148,AE139,COLUMNS(AG139:AG139)),\"\")","v":""},null,null,"",null,null,null,"N1","Vidutinis taršus automobilis",161.18," ",16,"","",null,{"$f":"IFERROR(INDEX(AO$124:AO$148,AT139,COLUMNS(AV139)),\"\")","v":""},null,null,"",""]
[null,null,null,null,null,null,null,null,null,null,null,null,null,null,null,null,null,null,null,null,null,null,null,null,null,null,null," ",17,"","",null,{"$f":"IFERROR(INDEX(Z$124:Z$148,AE140,COLUMNS(AG140:AG140)),\"\")","v":""},null,null,"",null,null,null,null,null,null," ",17,"","",null,{"$f":"IFERROR(INDEX(AO$124:AO$148,AT140,COLUMNS(AV140)),\"\")","v":""},null,null,"",""]
[null,null,null,null,null,null,null,null,null,null,null,null,null,null,null,null,null,null,null,null,null,null,null,null,"N2","Benzinas",5.1000000000000004E-3," ",18,18,"",null,{"$f":"IFERROR(INDEX(Z$124:Z$148,AE141,COLUMNS(AG141:AG141)),\"\")","v":""},null,null,"",null,null,null,"N2","Benzinas",1123.67," ",18,18,"",null,{"$f":"IFERROR(INDEX(AO$124:AO$148,AT141,COLUMNS(AV141)),\"\")","v":""},null,null,"",""]
[null,null,null,null,null,null,null,null,null,null,null,null,null,null,null,null,null,null,null,null,null,null,null,null,"N2","Suskystintos naftos dujos",7.9000000000000008E-3," ",19,19,"",null,{"$f":"IFERROR(INDEX(Z$124:Z$148,AE142,COLUMNS(AG142:AG142)),\"\")","v":""},null,null,"",null,null,null,"N2","Suskystintos naftos dujos",456.95," ",19,19,"",null,{"$f":"IFERROR(INDEX(AO$124:AO$148,AT142,COLUMNS(AV142)),\"\")","v":""},null,null,"",""]
[null,null,null,null,null,null,null,null,null,null,null,null,null,null,null,null,null,null,null,null,null,null,null,null,"N2","Dyzelinas",6.1999999999999998E-3," ",20,20,"",null,null,null,null,20,null,null,null,"N2","Dyzelinas",259.73," ",20,20,"",null,null,null,null,20,""]
[null,null,null,null,null,null,null,null,null,null,null,null,null,null,null,null,null,null,null,null,null,null,null,null,null,null,null," ",21,"","",null,null,null,null,"",null,null,null,null,null,null," ",21,"","",null,null,null,null,"",""]
[null,null,null,null,null,null,null,null,null,null,null,null,null,null,null,null,null,null,null,null,null,null,null,null,"N2","Vidutinis taršus automobilis",7.1000000000000004E-3," ",22,22,"",null,null,null,null,"",null,null,null,"N2","Vidutinis taršus automobilis",547.26," ",22,22,"",null,null,null,null,"",""]
[null,null,null,null,null,null,null,null,null,null,null,null,null,null,null,null,null,null,null,null,null,null,null,null,"N3","Dyzelinas",1.8700000000000001E-2," ",23,"","",null,null,null,null,"",null,null,null,"N3","Dyzelinas",492.62," ",23,"","",null,null,null,null,"",""]
[null,null,null,null,null,null,null,null,null,null,null,null,null,null,null,null,null,null,null,null,null,null,null,null,null,null,null," ",24,"","",null,null,null,null,"",null,null,null,null,null,null," ",24,"","",null,null,null,null,"",""]
[null,null,null,null,null,null,null,null,null,null,null,null,null,null,null,null,null,null,null,null,null,null,null,null,null,null,null," ",25,"",{"$f":"IFERROR(SMALL(AD$124:AD$148,AC148),\"\")","v":""}," "," "," "," ","",null," ",null,null,null,null," ",25,"",""," "," "," "," ","",""," "]
[]
[]
[]
[null,null,null,null,null,null,null,null,null,null,null,null,null,null,null,null,null,null,null,null,null,null,null,null,"Duomenys \"helper\" stulpeliams",null,null,"Helper stulpeliai",null," "," "," ","Degalų rušies dropdown'ui. Pagal H3 stulpelį suranda kokios kuro rūšis aktualios TP klasei",null,null," "," "," ",null,"Duomenys \"helper\" stulpeliams",null,null,"Helper stulpeliai",null," "," "," ","Degalų rušies dropdown'ui. Pagal H3 stulpelį suranda kokios kuro rūšis aktualios TP klasei"]
[null,null,null,null,null,null,null,null,null,null,null,null,null,null,null,null,null,null,null,null,null,null,null,null,"Priemonės tipas","Kuro tipas"," kt CO2 eq. per metus "," ","H1","H2","H3",null,"Dropdown 2",null,null,"H2 for old vehicle CO2 eq. value","H3 for CO2 eq. value",null,null,"Priemonės tipas","Kuro tipas"," CO2 g/km "," ","H1","H2","H3",null,"Dropdown 2",null,null,"H2 for old vehicle CO2 eq. value","H3 for CO2 eq. value"]
[null,null,null,null,null,null,null,null,null,null,null,null,null,null,null,null,null,null,null,null,null,null,null,null,"M1","Benzinas",1.5E-3," ",1,{"$f":"IF(Y154=M$8,AC154,\"\")","v":""},{"$f":"IFERROR(SMALL(AD$154:AD$178,AC154),\"\")","v":18},null,{"$f":"IFERROR(INDEX(Z$154:Z$178,AE154,COLUMNS(AG154:AG154)),\"\")","v":"Benzinas"},null,null,{"$f":"IF(AND(M$8=Y154,Z154=M$11),AC154,\"\")","v":""},{"$f":"IFERROR(SMALL(AJ$154:AJ$178,AC154),\"\")","v":20},null,null,"M1","Benzinas",158.62," ",1,{"$f":"IF(AN154=M$8,AR154,\"\")","v":""},{"$f":"IFERROR(SMALL(AS$154:AS$178,AR154),\"\")","v":18},null,{"$f":"IFERROR(INDEX(AO$154:AO$178,AT154,COLUMNS(AV154)),\"\")","v":"Benzinas"},null,null,{"$f":"IF(AND(M$8=AN154,AO154=M$11),AR154,\"\")","v":""},{"$f":"IFERROR(SMALL(AY$154:AY$178,AR154),\"\")","v":20}]
[null,null,null,null,null,null,null,null,null,null,null,null,null,null,null,null,null,null,null,null,null,null,null,null,"M1","Suskystintos naftos dujos",2.7000000000000001E-3," ",2,"",{"$f":"IFERROR(SMALL(AD$154:AD$178,AC155),\"\")","v":19},null,{"$f":"IFERROR(INDEX(Z$154:Z$178,AE155,COLUMNS(AG155:AG155)),\"\")","v":"Suskystintos naftos dujos"},null,null,"",null,null,null,"M1","Suskystintos naftos dujos",240.07," ",2,"",19,null,{"$f":"IFERROR(INDEX(AO$154:AO$178,AT155,COLUMNS(AV155)),\"\")","v":"Suskystintos naftos dujos"},null,null,"",""]
[null,null,null,null,null,null,null,null,null,null,null,null,null,null,null,null,null,null,null,null,null,null,null,null,null,null,null," ",3,"",20,null,{"$f":"IFERROR(INDEX(Z$154:Z$178,AE156,COLUMNS(AG156:AG156)),\"\")","v":"Dyzelinas"},null,null,"",null,null,null,null,null,null," ",3,"",20,null,{"$f":"IFERROR(INDEX(AO$154:AO$178,AT156,COLUMNS(AV156)),\"\")","v":"Dyzelinas"},null,null,"",""]
[null,null,null,null,null,null,null,null,null,null,null,null,null,null,null,null,null,null,null,null,null,null,null,null,"M1","Dyzelinas",1.6999999999999999E-3," ",4,"",22,null,{"$f":"IFERROR(INDEX(Z$154:Z$178,AE157,COLUMNS(AG157:AG157)),\"\")","v":"Vidutinis taršus automobilis"},null,null,"",null,null,null,"M1","Dyzelinas",126.25," ",4,"",22,null,{"$f":"IFERROR(INDEX(AO$154:AO$178,AT157,COLUMNS(AV157)),\"\")","v":"Vidutinis taršus automobilis"},null,null,"",""]
[null,null,null,null,null,null,null,null,null,null,null,null,null,null,null,null,null,null,null,null,null,null,null,null,"M1","Vidutinis taršus automobilis",1.8E-3," ",5,"","",null,{"$f":"IFERROR(INDEX(Z$154:Z$178,AE158,COLUMNS(AG158:AG158)),\"\")","v":""},null,null,"",null,null,null,"M1","Vidutinis taršus automobilis",138.11000000000001," ",5,"","",null,{"$f":"IFERROR(INDEX(AO$154:AO$178,AT158,COLUMNS(AV158)),\"\")","v":""},null,null,"",""]
[null,null,null,null,null,null,null,null,null,null,null,null,null,null,null,null,null,null,null,null,null,null,null,null,null,null,null," ",6,"","",null,{"$f":"IFERROR(INDEX(Z$154:Z$178,AE159,COLUMNS(AG159:AG159)),\"\")","v":""},null,null,"",null,null,null,null,null,null," ",6,"","",null,{"$f":"IFERROR(INDEX(AO$154:AO$178,AT159,COLUMNS(AV159)),\"\")","v":""},null,null,"",""]
[null,null,null,null,null,null,null,null,null,null,null,null,null,null,null,null,null,null,null,null,null,null,null,null,"M2","Dyzelinas",1.5599999999999999E-2," ",7,"","",null,{"$f":"IFERROR(INDEX(Z$154:Z$178,AE160,COLUMNS(AG160:AG160)),\"\")","v":""},null,null,"",null,null,null,"M2","Dyzelinas",510.29," ",7,"","",null,{"$f":"IFERROR(INDEX(AO$154:AO$178,AT160,COLUMNS(AV160)),\"\")","v":""},null,null,"",""]
[null,null,null,null,null,null,null,null,null,null,null,null,null,null,null,null,null,null,null,null,null,null,null,null,null,null,null," ",8,"","",null,{"$f":"IFERROR(INDEX(Z$154:Z$178,AE161,COLUMNS(AG161:AG161)),\"\")","v":""},null,null,"",null,null,null,null,null,null," ",8,"","",null,{"$f":"IFERROR(INDEX(AO$154:AO$178,AT161,COLUMNS(AV161)),\"\")","v":""},null,null,"",""]
[null,null,null,null,null,null,null,null,null,null,null,null,null,null,null,null,null,null,null,null,null,null,null,null,null,null,null," ",9,"","",null,{"$f":"IFERROR(INDEX(Z$154:Z$178,AE162,COLUMNS(AG162:AG162)),\"\")","v":""},null,null,"",null,null,null,null,null,null," ",9,"","",null,{"$f":"IFERROR(INDEX(AO$154:AO$178,AT162,COLUMNS(AV162)),\"\")","v":""},null,null,"",""]
[null,null,null,null,null,null,null,null,null,null,null,null,null,null,null,null,null,null,null,null,null,null,null,null,"M3","Dyzelinas",8.8499999999999995E-2," ",10,"","",null,{"$f":"IFERROR(INDEX(Z$154:Z$178,AE163,COLUMNS(AG163:AG163)),\"\")","v":""},null,null,"",null,null,null,"M3","Dyzelinas",1952.77," ",10,"","",null,{"$f":"IFERROR(INDEX(AO$154:AO$178,AT163,COLUMNS(AV163)),\"\")","v":""},null,null,"",""]
[null,null,null,null,null,null,null,null,null,null,null,null,null,null,null,null,null,null,null,null,null,null,null,null,null,null,null," ",11,"","",null,{"$f":"IFERROR(INDEX(Z$154:Z$178,AE164,COLUMNS(AG164:AG164)),\"\")","v":""},null,null,"",null,null,null,null,null,null," ",11,"","",null,{"$f":"IFERROR(INDEX(AO$154:AO$178,AT164,COLUMNS(AV164)),\"\")","v":""},null,null,"",""]
[null,null,null,null,null,null,null,null,null,null,null,null,null,null,null,null,null,null,null,null,null,null,null,null,null,null,null," ",12,"","",null,{"$f":"IFERROR(INDEX(Z$154:Z$178,AE165,COLUMNS(AG165:AG165)),\"\")","v":""},null,null,"",null,null,null,null,null,null," ",12,"","",null,{"$f":"IFERROR(INDEX(AO$154:AO$178,AT165,COLUMNS(AV165)),\"\")","v":""},null,null,"",""]
[null,null,null,null,null,null,null,null,null,null,null,null,null,null,null,null,null,null,null,null,null,null,null,null,"N1","Benzinas",3.3999999999999998E-3," ",13,"","",null,{"$f":"IFERROR(INDEX(Z$154:Z$178,AE166,COLUMNS(AG166:AG166)),\"\")","v":""},null,null,"",null,null,null,"N1","Benzinas",265.14999999999998," ",13,"","",null,{"$f":"IFERROR(INDEX(AO$154:AO$178,AT166,COLUMNS(AV166)),\"\")","v":""},null,null,"",""]
[null,null,null,null,null,null,null,null,null,null,null,null,null,null,null,null,null,null,null,null,null,null,null,null,"N1","Suskystintos naftos dujos",4.5999999999999999E-3," ",14,"","",null,{"$f":"IFERROR(INDEX(Z$154:Z$178,AE167,COLUMNS(AG167:AG167)),\"\")","v":""},null,null,"",null,null,null,"N1","Suskystintos naftos dujos",354.36," ",14,"","",null,{"$f":"IFERROR(INDEX(AO$154:AO$178,AT167,COLUMNS(AV167)),\"\")","v":""},null,null,"",""]
[null,null,null,null,null,null,null,null,null,null,null,null,null,null,null,null,null,null,null,null,null,null,null,null,"N1","Dyzelinas",3.2000000000000002E-3," ",15,"","",null,{"$f":"IFERROR(INDEX(Z$154:Z$178,AE168,COLUMNS(AG168:AG168)),\"\")","v":""},null,null,"",null,null,null,"N1","Dyzelinas",152.44," ",15,"","",null,{"$f":"IFERROR(INDEX(AO$154:AO$178,AT168,COLUMNS(AV168)),\"\")","v":""},null,null,"",""]
[null,null,null,null,null,null,null,null,null,null,null,null,null,null,null,null,null,null,null,null,null,null,null,null,"N1","Vidutinis taršus automobilis",3.2000000000000002E-3," ",16,"","",null,{"$f":"IFERROR(INDEX(Z$154:Z$178,AE169,COLUMNS(AG169:AG169)),\"\")","v":""},null,null,"",null,null,null,"N1","Vidutinis taršus automobilis",155.24," ",16,"","",null,{"$f":"IFERROR(INDEX(AO$154:AO$178,AT169,COLUMNS(AV169)),\"\")","v":""},null,null,"",""]
[null,null,null,null,null,null,null,null,null,null,null,null,null,null,null,null,null,null,null,null,null,null,null,null,null,null,null," ",17,"","",null,{"$f":"IFERROR(INDEX(Z$154:Z$178,AE170,COLUMNS(AG170:AG170)),\"\")","v":""},null,null,"",null,null,null,null,null,null," ",17,"","",null,{"$f":"IFERROR(INDEX(AO$154:AO$178,AT170,COLUMNS(AV170)),\"\")","v":""},null,null,"",""]
[null,null,null,null,null,null,null,null,null,null,null,null,null,null,null,null,null,null,null,null,null,null,null,null,"N2","Benzinas",5.1000000000000004E-3," ",18,18,"",null,{"$f":"IFERROR(INDEX(Z$154:Z$178,AE171,COLUMNS(AG171:AG171)),\"\")","v":""},null,null,"",null,null,null,"N2","Benzinas",1123.67," ",18,18,"",null,{"$f":"IFERROR(INDEX(AO$154:AO$178,AT171,COLUMNS(AV171)),\"\")","v":""},null,null,"",""]
[null,null,null,null,null,null,null,null,null,null,null,null,null,null,null,null,null,null,null,null,null,null,null,null,"N2","Suskystintos naftos dujos",7.9000000000000008E-3," ",19,19,"",null,{"$f":"IFERROR(INDEX(Z$154:Z$178,AE172,COLUMNS(AG172:AG172)),\"\")","v":""},null,null,"",null,null,null,"N2","Suskystintos naftos dujos",456.95," ",19,19,"",null,{"$f":"IFERROR(INDEX(AO$154:AO$178,AT172,COLUMNS(AV172)),\"\")","v":""},null,null,"",""]
[null,null,null,null,null,null,null,null,null,null,null,null,null,null,null,null,null,null,null,null,null,null,null,null,"N2","Dyzelinas",5.8999999999999999E-3," ",20,20,"",null,null,null,null,20,null,null,null,"N2","Dyzelinas",248.02," ",20,20,"",null,null,null,null,20,""]
[null,null,null,null,null,null,null,null,null,null,null,null,null,null,null,null,null,null,null,null,null,null,null,null,null,null,null," ",21,"","",null,null,null,null,"",null,null,null,null,null,null," ",21,"","",null,null,null,null,"",""]
[null,null,null,null,null,null,null,null,null,null,null,null,null,null,null,null,null,null,null,null,null,null,null,null,"N2","Vidutinis taršus automobilis",6.8999999999999999E-3," ",22,22,"",null,null,null,null,"",null,null,null,"N2","Vidutinis taršus automobilis",538.27," ",22,22,"",null,null,null,null,"",""]
[null,null,null,null,null,null,null,null,null,null,null,null,null,null,null,null,null,null,null,null,null,null,null,null,"N3","Dyzelinas",1.78E-2," ",23,"","",null,null,null,null,"",null,null,null,"N3","Dyzelinas",468.96," ",23,"","",null,null,null,null,"",""]
[null,null,null,null,null,null,null,null,null,null,null,null,null,null,null,null,null,null,null,null,null,null,null,null,null,null,null," ",24,"","",null,null,null,null,"",null,null,null,null,null,null," ",24,"","",null,null,null,null,"",""]
[null,null,null,null,null,null,null,null,null,null,null,null,null,null,null,null,null,null,null,null,null,null,null,null,null,null,null," ",25,"",{"$f":"IFERROR(SMALL(AD$154:AD$178,AC178),\"\")","v":""}," "," "," "," ","",null," ",null,null,null,null," ",25,"",""," ",null," "," ","",""," "]
[]
[]
[]
[null,null,null,null,null,null,null,null,null,null,null,null,null,null,null,null,null,null,null,null,null,null,null,null,"Duomenys \"helper\" stulpeliams",null,null,"Helper stulpeliai",null," "," "," ","Degalų rušies dropdown'ui. Pagal H3 stulpelį suranda kokios kuro rūšis aktualios TP klasei",null,null," "," "," ",null,"Duomenys \"helper\" stulpeliams",null,null,"Helper stulpeliai",null," "," "," ","Degalų rušies dropdown'ui. Pagal H3 stulpelį suranda kokios kuro rūšis aktualios TP klasei"]
[null,null,null,null,null,null,null,null,null,null,null,null,null,null,null,null,null,null,null,null,null,null,null,null,"Priemonės tipas","Kuro tipas"," kt CO2 eq. per metus "," ","H1","H2","H3",null,"Dropdown 2",null,null,"H2 for old vehicle CO2 eq. value","H3 for CO2 eq. value",null,null,"Priemonės tipas","Kuro tipas"," CO2 g/km "," ","H1","H2","H3",null,"Dropdown 2",null,null,"H2 for old vehicle CO2 eq. value","H3 for CO2 eq. value"]
[null,null,null,null,null,null,null,null,null,null,null,null,null,null,null,null,null,null,null,null,null,null,null,null,"M1","Benzinas",1.5E-3," ",1,{"$f":"IF(Y184=N$8,AC184,\"\")","v":""},{"$f":"IFERROR(SMALL(AD$184:AD$208,AC184),\"\")","v":18},null,{"$f":"IFERROR(INDEX(Z$184:Z$208,AE184,COLUMNS(AG184:AG184)),\"\")","v":"Benzinas"},null,null,{"$f":"IF(AND(N$8=Y184,Z184=N$11),AC184,\"\")","v":""},{"$f":"IFERROR(SMALL(AJ$184:AJ$208,AC184),\"\")","v":20},null,null,"M1","Benzinas",156.74," ",1,{"$f":"IF(AN184=N$8,AR184,\"\")","v":""},{"$f":"IFERROR(SMALL(AS$184:AS$208,AR184),\"\")","v":18},null,{"$f":"IFERROR(INDEX(AO$184:AO$208,AT184,COLUMNS(AV184)),\"\")","v":"Benzinas"},null,null,{"$f":"IF(AND(N$8=AN184,AO184=N$11),AR184,\"\")","v":""},{"$f":"IFERROR(SMALL(AY$184:AY$208,AR184),\"\")","v":20}]
[null,null,null,null,null,null,null,null,null,null,null,null,null,null,null,null,null,null,null,null,null,null,null,null,"M1","Suskystintos naftos dujos",2.7000000000000001E-3," ",2,"",{"$f":"IFERROR(SMALL(AD$184:AD$208,AC185),\"\")","v":19},null,{"$f":"IFERROR(INDEX(Z$184:Z$208,AE185,COLUMNS(AG185:AG185)),\"\")","v":"Suskystintos naftos dujos"},null,null,"",null,null,null,"M1","Suskystintos naftos dujos",241.25," ",2,"",19,null,{"$f":"IFERROR(INDEX(AO$184:AO$208,AT185,COLUMNS(AV185)),\"\")","v":"Suskystintos naftos dujos"},null,null,"",""]
[null,null,null,null,null,null,null,null,null,null,null,null,null,null,null,null,null,null,null,null,null,null,null,null,null,null,null," ",3,"",20,null,{"$f":"IFERROR(INDEX(Z$184:Z$208,AE186,COLUMNS(AG186:AG186)),\"\")","v":"Dyzelinas"},null,null,"",null,null,null,null,null,null," ",3,"",20,null,{"$f":"IFERROR(INDEX(AO$184:AO$208,AT186,COLUMNS(AV186)),\"\")","v":"Dyzelinas"},null,null,"",""]
[null,null,null,null,null,null,null,null,null,null,null,null,null,null,null,null,null,null,null,null,null,null,null,null,"M1","Dyzelinas",1.6000000000000001E-3," ",4,"",22,null,{"$f":"IFERROR(INDEX(Z$184:Z$208,AE187,COLUMNS(AG187:AG187)),\"\")","v":"Vidutinis taršus automobilis"},null,null,"",null,null,null,"M1","Dyzelinas",120.17," ",4,"",22,null,{"$f":"IFERROR(INDEX(AO$184:AO$208,AT187,COLUMNS(AV187)),\"\")","v":"Vidutinis taršus automobilis"},null,null,"",""]
[null,null,null,null,null,null,null,null,null,null,null,null,null,null,null,null,null,null,null,null,null,null,null,null,"M1","Vidutinis taršus automobilis",1.6999999999999999E-3," ",5,"","",null,{"$f":"IFERROR(INDEX(Z$184:Z$208,AE188,COLUMNS(AG188:AG188)),\"\")","v":""},null,null,"",null,null,null,"M1","Vidutinis taršus automobilis",134.13," ",5,"","",null,{"$f":"IFERROR(INDEX(AO$184:AO$208,AT188,COLUMNS(AV188)),\"\")","v":""},null,null,"",""]
[null,null,null,null,null,null,null,null,null,null,null,null,null,null,null,null,null,null,null,null,null,null,null,null,null,null,null," ",6,"","",null,{"$f":"IFERROR(INDEX(Z$184:Z$208,AE189,COLUMNS(AG189:AG189)),\"\")","v":""},null,null,"",null,null,null,null,null,null," ",6,"","",null,{"$f":"IFERROR(INDEX(AO$184:AO$208,AT189,COLUMNS(AV189)),\"\")","v":""},null,null,"",""]
[null,null,null,null,null,null,null,null,null,null,null,null,null,null,null,null,null,null,null,null,null,null,null,null,"M2","Dyzelinas",1.5599999999999999E-2," ",7,"","",null,{"$f":"IFERROR(INDEX(Z$184:Z$208,AE190,COLUMNS(AG190:AG190)),\"\")","v":""},null,null,"",null,null,null,"M2","Dyzelinas",510.29," ",7,"","",null,{"$f":"IFERROR(INDEX(AO$184:AO$208,AT190,COLUMNS(AV190)),\"\")","v":""},null,null,"",""]
[null,null,null,null,null,null,null,null,null,null,null,null,null,null,null,null,null,null,null,null,null,null,null,null,null,null,null," ",8,"","",null,{"$f":"IFERROR(INDEX(Z$184:Z$208,AE191,COLUMNS(AG191:AG191)),\"\")","v":""},null,null,"",null,null,null,null,null,null," ",8,"","",null,{"$f":"IFERROR(INDEX(AO$184:AO$208,AT191,COLUMNS(AV191)),\"\")","v":""},null,null,"",""]
[null,null,null,null,null,null,null,null,null,null,null,null,null,null,null,null,null,null,null,null,null,null,null,null,null,null,null," ",9,"","",null,{"$f":"IFERROR(INDEX(Z$184:Z$208,AE192,COLUMNS(AG192:AG192)),\"\")","v":""},null,null,"",null,null,null,null,null,null," ",9,"","",null,{"$f":"IFERROR(INDEX(AO$184:AO$208,AT192,COLUMNS(AV192)),\"\")","v":""},null,null,"",""]
[null,null,null,null,null,null,null,null,null,null,null,null,null,null,null,null,null,null,null,null,null,null,null,null,"M3","Dyzelinas",8.8499999999999995E-2," ",10,"","",null,{"$f":"IFERROR(INDEX(Z$184:Z$208,AE193,COLUMNS(AG193:AG193)),\"\")","v":""},null,null,"",null,null,null,"M3","Dyzelinas",1952.77," ",10,"","",null,{"$f":"IFERROR(INDEX(AO$184:AO$208,AT193,COLUMNS(AV193)),\"\")","v":""},null,null,"",""]
[null,null,null,null,null,null,null,null,null,null,null,null,null,null,null,null,null,null,null,null,null,null,null,null,null,null,null," ",11,"","",null,{"$f":"IFERROR(INDEX(Z$184:Z$208,AE194,COLUMNS(AG194:AG194)),\"\")","v":""},null,null,"",null,null,null,null,null,null," ",11,"","",null,{"$f":"IFERROR(INDEX(AO$184:AO$208,AT194,COLUMNS(AV194)),\"\")","v":""},null,null,"",""]
[null,null,null,null,null,null,null,null,null,null,null,null,null,null,null,null,null,null,null,null,null,null,null,null,null,null,null," ",12,"","",null,{"$f":"IFERROR(INDEX(Z$184:Z$208,AE195,COLUMNS(AG195:AG195)),\"\")","v":""},null,null,"",null,null,null,null,null,null," ",12,"","",null,{"$f":"IFERROR(INDEX(AO$184:AO$208,AT195,COLUMNS(AV195)),\"\")","v":""},null,null,"",""]
[null,null,null,null,null,null,null,null,null,null,null,null,null,null,null,null,null,null,null,null,null,null,null,null,"N1","Benzinas",3.3999999999999998E-3," ",13,"","",null,{"$f":"IFERROR(INDEX(Z$184:Z$208,AE196,COLUMNS(AG196:AG196)),\"\")","v":""},null,null,"",null,null,null,"N1","Benzinas",263.66000000000003," ",13,"","",null,{"$f":"IFERROR(INDEX(AO$184:AO$208,AT196,COLUMNS(AV196)),\"\")","v":""},null,null,"",""]
[null,null,null,null,null,null,null,null,null,null,null,null,null,null,null,null,null,null,null,null,null,null,null,null,"N1","Suskystintos naftos dujos",4.5999999999999999E-3," ",14,"","",null,{"$f":"IFERROR(INDEX(Z$184:Z$208,AE197,COLUMNS(AG197:AG197)),\"\")","v":""},null,null,"",null,null,null,"N1","Suskystintos naftos dujos",354.36," ",14,"","",null,{"$f":"IFERROR(INDEX(AO$184:AO$208,AT197,COLUMNS(AV197)),\"\")","v":""},null,null,"",""]
[null,null,null,null,null,null,null,null,null,null,null,null,null,null,null,null,null,null,null,null,null,null,null,null,"N1","Dyzelinas",3.0000000000000001E-3," ",15,"","",null,{"$f":"IFERROR(INDEX(Z$184:Z$208,AE198,COLUMNS(AG198:AG198)),\"\")","v":""},null,null,"",null,null,null,"N1","Dyzelinas",145.99," ",15,"","",null,{"$f":"IFERROR(INDEX(AO$184:AO$208,AT198,COLUMNS(AV198)),\"\")","v":""},null,null,"",""]
[null,null,null,null,null,null,null,null,null,null,null,null,null,null,null,null,null,null,null,null,null,null,null,null,"N1","Vidutinis taršus automobilis",3.0000000000000001E-3," ",16,"","",null,{"$f":"IFERROR(INDEX(Z$184:Z$208,AE199,COLUMNS(AG199:AG199)),\"\")","v":""},null,null,"",null,null,null,"N1","Vidutinis taršus automobilis",148.9," ",16,"","",null,{"$f":"IFERROR(INDEX(AO$184:AO$208,AT199,COLUMNS(AV199)),\"\")","v":""},null,null,"",""]
[null,null,null,null,null,null,null,null,null,null,null,null,null,null,null,null,null,null,null,null,null,null,null,null,null,null,null," ",17,"","",null,{"$f":"IFERROR(INDEX(Z$184:Z$208,AE200,COLUMNS(AG200:AG200)),\"\")","v":""},null,null,"",null,null,null,null,null,null," ",17,"","",null,{"$f":"IFERROR(INDEX(AO$184:AO$208,AT200,COLUMNS(AV200)),\"\")","v":""},null,null,"",""]
[null,null,null,null,null,null,null,null,null,null,null,null,null,null,null,null,null,null,null,null,null,null,null,null,"N2","Benzinas",5.1000000000000004E-3," ",18,18,"",null,{"$f":"IFERROR(INDEX(Z$184:Z$208,AE201,COLUMNS(AG201:AG201)),\"\")","v":""},null,null,"",null,null,null,"N2","Benzinas",1123.67," ",18,18,"",null,{"$f":"IFERROR(INDEX(AO$184:AO$208,AT201,COLUMNS(AV201)),\"\")","v":""},null,null,"",""]
[null,null,null,null,null,null,null,null,null,null,null,null,null,null,null,null,null,null,null,null,null,null,null,null,"N2","Suskystintos naftos dujos",7.9000000000000008E-3," ",19,19,"",null,{"$f":"IFERROR(INDEX(Z$184:Z$208,AE202,COLUMNS(AG202:AG202)),\"\")","v":""},null,null,"",null,null,null,"N2","Suskystintos naftos dujos",456.95," ",19,19,"",null,{"$f":"IFERROR(INDEX(AO$184:AO$208,AT202,COLUMNS(AV202)),\"\")","v":""},null,null,"",""]
[null,null,null,null,null,null,null,null,null,null,null,null,null,null,null,null,null,null,null,null,null,null,null,null,"N2","Dyzelinas",5.5999999999999999E-3," ",20,20,"",null,null,null,null,20,null,null,null,"N2","Dyzelinas",236.16," ",20,20,"",null,null,null,null,20,""]
[null,null,null,null,null,null,null,null,null,null,null,null,null,null,null,null,null,null,null,null,null,null,null,null,null,null,null," ",21,"","",null,null,null,null,"",null,null,null,null,null,null," ",21,"","",null,null,null,null,"",""]
[null,null,null,null,null,null,null,null,null,null,null,null,null,null,null,null,null,null,null,null,null,null,null,null,"N2","Vidutinis taršus automobilis",6.7000000000000002E-3," ",22,22,"",null,null,null,null,"",null,null,null,"N2","Vidutinis taršus automobilis",530.62," ",22,22,"",null,null,null,null,"",""]
[null,null,null,null,null,null,null,null,null,null,null,null,null,null,null,null,null,null,null,null,null,null,null,null,"N3","Dyzelinas",1.6899999999999998E-2," ",23,"","",null,null,null,null,"",null,null,null,"N3","Dyzelinas",444.71," ",23,"","",null,null,null,null,"",""]
[null,null,null,null,null,null,null,null,null,null,null,null,null,null,null,null,null,null,null,null,null,null,null,null,null,null,null," ",24,"","",null,null,null,null,"",null,null,null,null,null,null," ",24,"","",null,null,null,null,"",""]
[null,null,null,null,null,null,null,null,null,null,null,null,null,null,null,null,null,null,null,null,null,null,null,null,null,null,null," ",25,"",{"$f":"IFERROR(SMALL(AD$184:AD$208,AC208),\"\")","v":""}," "," "," "," ","",null," ",null,null,null,null," ",25,"",""," ",null," "," ","",""," "]
[]
[]
[]
[null,null,null,null,null,null,null,null,null,null,null,null,null,null,null,null,null,null,null,null,null,null,null,null,"Duomenys \"helper\" stulpeliams",null,null,"Helper stulpeliai",null," "," "," ","Degalų rušies dropdown'ui. Pagal H3 stulpelį suranda kokios kuro rūšis aktualios TP klasei",null,null," "," "," ",null,"Duomenys \"helper\" stulpeliams",null,null,"Helper stulpeliai",null," "," "," ","Degalų rušies dropdown'ui. Pagal H3 stulpelį suranda kokios kuro rūšis aktualios TP klasei"]
[null,null,null,null,null,null,null,null,null,null,null,null,null,null,null,null,null,null,null,null,null,null,null,null,"Priemonės tipas","Kuro tipas"," kt CO2 eq. per metus "," ","H1","H2","H3",null,"Dropdown 2",null,null,"H2 for old vehicle CO2 eq. value","H3 for CO2 eq. value",null,null,"Priemonės tipas","Kuro tipas"," CO2 g/km "," ","H1","H2","H3",null,"Dropdown 2",null,null,"H2 for old vehicle CO2 eq. value","H3 for CO2 eq. value"]
[null,null,null,null,null,null,null,null,null,null,null,null,null,null,null,null,null,null,null,null,null,null,null,null,"M1","Benzinas",1.5E-3," ",1,{"$f":"IF(Y214=O$8,AC214,\"\")","v":""},{"$f":"IFERROR(SMALL(AD$214:AD$238,AC214),\"\")","v":18},null,{"$f":"IFERROR(INDEX(Z$214:Z$238,AE214,COLUMNS(AG214:AG214)),\"\")","v":"Benzinas"},null,null,{"$f":"IF(AND(O$8=Y214,Z214=O$11),AC214,\"\")","v":""},{"$f":"IFERROR(SMALL(AJ$214:AJ$238,AC214),\"\")","v":20},null,null,"M1","Benzinas",154.82," ",1,{"$f":"IF(AN214=O$8,AR214,\"\")","v":""},{"$f":"IFERROR(SMALL(AS$214:AS$238,AR214),\"\")","v":18},null,{"$f":"IFERROR(INDEX(AO$214:AO$238,AT214,COLUMNS(AV214)),\"\")","v":"Benzinas"},null,null,{"$f":"IF(AND(O$8=AN214,AO214=O$11),AR214,\"\")","v":""},{"$f":"IFERROR(SMALL(AY$214:AY$238,AR214),\"\")","v":20}]
[null,null,null,null,null,null,null,null,null,null,null,null,null,null,null,null,null,null,null,null,null,null,null,null,"M1","Suskystintos naftos dujos",2.8E-3," ",2,"",{"$f":"IFERROR(SMALL(AD$214:AD$238,AC215),\"\")","v":19},null,{"$f":"IFERROR(INDEX(Z$214:Z$238,AE215,COLUMNS(AG215:AG215)),\"\")","v":"Suskystintos naftos dujos"},null,null,"",null,null,null,"M1","Suskystintos naftos dujos",244.26," ",2,"",19,null,{"$f":"IFERROR(INDEX(AO$214:AO$238,AT215,COLUMNS(AV215)),\"\")","v":"Suskystintos naftos dujos"},null,null,"",""]
[null,null,null,null,null,null,null,null,null,null,null,null,null,null,null,null,null,null,null,null,null,null,null,null,null,null,null," ",3,"",20,null,{"$f":"IFERROR(INDEX(Z$214:Z$238,AE216,COLUMNS(AG216:AG216)),\"\")","v":"Dyzelinas"},null,null,"",null,null,null,null,null,null," ",3,"",20,null,{"$f":"IFERROR(INDEX(AO$214:AO$238,AT216,COLUMNS(AV216)),\"\")","v":"Dyzelinas"},null,null,"",""]
[null,null,null,null,null,null,null,null,null,null,null,null,null,null,null,null,null,null,null,null,null,null,null,null,"M1","Dyzelinas",1.5E-3," ",4,"",22,null,{"$f":"IFERROR(INDEX(Z$214:Z$238,AE217,COLUMNS(AG217:AG217)),\"\")","v":"Vidutinis taršus automobilis"},null,null,"",null,null,null,"M1","Dyzelinas",113.03," ",4,"",22,null,{"$f":"IFERROR(INDEX(AO$214:AO$238,AT217,COLUMNS(AV217)),\"\")","v":"Vidutinis taršus automobilis"},null,null,"",""]
[null,null,null,null,null,null,null,null,null,null,null,null,null,null,null,null,null,null,null,null,null,null,null,null,"M1","Vidutinis taršus automobilis",1.6999999999999999E-3," ",5,"","",null,{"$f":"IFERROR(INDEX(Z$214:Z$238,AE218,COLUMNS(AG218:AG218)),\"\")","v":""},null,null,"",null,null,null,"M1","Vidutinis taršus automobilis",129.93," ",5,"","",null,{"$f":"IFERROR(INDEX(AO$214:AO$238,AT218,COLUMNS(AV218)),\"\")","v":""},null,null,"",""]
[null,null,null,null,null,null,null,null,null,null,null,null,null,null,null,null,null,null,null,null,null,null,null,null,null,null,null," ",6,"","",null,{"$f":"IFERROR(INDEX(Z$214:Z$238,AE219,COLUMNS(AG219:AG219)),\"\")","v":""},null,null,"",null,null,null,null,null,null," ",6,"","",null,{"$f":"IFERROR(INDEX(AO$214:AO$238,AT219,COLUMNS(AV219)),\"\")","v":""},null,null,"",""]
[null,null,null,null,null,null,null,null,null,null,null,null,null,null,null,null,null,null,null,null,null,null,null,null,"M2","Dyzelinas",1.5599999999999999E-2," ",7,"","",null,{"$f":"IFERROR(INDEX(Z$214:Z$238,AE220,COLUMNS(AG220:AG220)),\"\")","v":""},null,null,"",null,null,null,"M2","Dyzelinas",510.29," ",7,"","",null,{"$f":"IFERROR(INDEX(AO$214:AO$238,AT220,COLUMNS(AV220)),\"\")","v":""},null,null,"",""]
[null,null,null,null,null,null,null,null,null,null,null,null,null,null,null,null,null,null,null,null,null,null,null,null,null,null,null," ",8,"","",null,{"$f":"IFERROR(INDEX(Z$214:Z$238,AE221,COLUMNS(AG221:AG221)),\"\")","v":""},null,null,"",null,null,null,null,null,null," ",8,"","",null,{"$f":"IFERROR(INDEX(AO$214:AO$238,AT221,COLUMNS(AV221)),\"\")","v":""},null,null,"",""]
[null,null,null,null,null,null,null,null,null,null,null,null,null,null,null,null,null,null,null,null,null,null,null,null,null,null,null," ",9,"","",null,{"$f":"IFERROR(INDEX(Z$214:Z$238,AE222,COLUMNS(AG222:AG222)),\"\")","v":""},null,null,"",null,null,null,null,null,null," ",9,"","",null,{"$f":"IFERROR(INDEX(AO$214:AO$238,AT222,COLUMNS(AV222)),\"\")","v":""},null,null,"",""]
[null,null,null,null,null,null,null,null,null,null,null,null,null,null,null,null,null,null,null,null,null,null,null,null,"M3","Dyzelinas",8.8499999999999995E-2," ",10,"","",null,{"$f":"IFERROR(INDEX(Z$214:Z$238,AE223,COLUMNS(AG223:AG223)),\"\")","v":""},null,null,"",null,null,null,"M3","Dyzelinas",1952.77," ",10,"","",null,{"$f":"IFERROR(INDEX(AO$214:AO$238,AT223,COLUMNS(AV223)),\"\")","v":""},null,null,"",""]
[null,null,null,null,null,null,null,null,null,null,null,null,null,null,null,null,null,null,null,null,null,null,null,null,null,null,null," ",11,"","",null,{"$f":"IFERROR(INDEX(Z$214:Z$238,AE224,COLUMNS(AG224:AG224)),\"\")","v":""},null,null,"",null,null,null,null,null,null," ",11,"","",null,{"$f":"IFERROR(INDEX(AO$214:AO$238,AT224,COLUMNS(AV224)),\"\")","v":""},null,null,"",""]
[null,null,null,null,null,null,null,null,null,null,null,null,null,null,null,null,null,null,null,null,null,null,null,null,null,null,null," ",12,"","",null,{"$f":"IFERROR(INDEX(Z$214:Z$238,AE225,COLUMNS(AG225:AG225)),\"\")","v":""},null,null,"",null,null,null,null,null,null," ",12,"","",null,{"$f":"IFERROR(INDEX(AO$214:AO$238,AT225,COLUMNS(AV225)),\"\")","v":""},null,null,"",""]
[null,null,null,null,null,null,null,null,null,null,null,null,null,null,null,null,null,null,null,null,null,null,null,null,"N1","Benzinas",3.3999999999999998E-3," ",13,"","",null,{"$f":"IFERROR(INDEX(Z$214:Z$238,AE226,COLUMNS(AG226:AG226)),\"\")","v":""},null,null,"",null,null,null,"N1","Benzinas",262.16000000000003," ",13,"","",null,{"$f":"IFERROR(INDEX(AO$214:AO$238,AT226,COLUMNS(AV226)),\"\")","v":""},null,null,"",""]
[null,null,null,null,null,null,null,null,null,null,null,null,null,null,null,null,null,null,null,null,null,null,null,null,"N1","Suskystintos naftos dujos",4.5999999999999999E-3," ",14,"","",null,{"$f":"IFERROR(INDEX(Z$214:Z$238,AE227,COLUMNS(AG227:AG227)),\"\")","v":""},null,null,"",null,null,null,"N1","Suskystintos naftos dujos",354.36," ",14,"","",null,{"$f":"IFERROR(INDEX(AO$214:AO$238,AT227,COLUMNS(AV227)),\"\")","v":""},null,null,"",""]
[null,null,null,null,null,null,null,null,null,null,null,null,null,null,null,null,null,null,null,null,null,null,null,null,"N1","Dyzelinas",2.8999999999999998E-3," ",15,"","",null,{"$f":"IFERROR(INDEX(Z$214:Z$238,AE228,COLUMNS(AG228:AG228)),\"\")","v":""},null,null,"",null,null,null,"N1","Dyzelinas",138.52000000000001," ",15,"","",null,{"$f":"IFERROR(INDEX(AO$214:AO$238,AT228,COLUMNS(AV228)),\"\")","v":""},null,null,"",""]
[null,null,null,null,null,null,null,null,null,null,null,null,null,null,null,null,null,null,null,null,null,null,null,null,"N1","Vidutinis taršus automobilis",2.8999999999999998E-3," ",16,"","",null,{"$f":"IFERROR(INDEX(Z$214:Z$238,AE229,COLUMNS(AG229:AG229)),\"\")","v":""},null,null,"",null,null,null,"N1","Vidutinis taršus automobilis",141.6," ",16,"","",null,{"$f":"IFERROR(INDEX(AO$214:AO$238,AT229,COLUMNS(AV229)),\"\")","v":""},null,null,"",""]
[null,null,null,null,null,null,null,null,null,null,null,null,null,null,null,null,null,null,null,null,null,null,null,null,null,null,null," ",17,"","",null,{"$f":"IFERROR(INDEX(Z$214:Z$238,AE230,COLUMNS(AG230:AG230)),\"\")","v":""},null,null,"",null,null,null,null,null,null," ",17,"","",null,{"$f":"IFERROR(INDEX(AO$214:AO$238,AT230,COLUMNS(AV230)),\"\")","v":""},null,null,"",""]
[null,null,null,null,null,null,null,null,null,null,null,null,null,null,null,null,null,null,null,null,null,null,null,null,"N2","Benzinas",5.1000000000000004E-3," ",18,18,"",null,{"$f":"IFERROR(INDEX(Z$214:Z$238,AE231,COLUMNS(AG231:AG231)),\"\")","v":""},null,null,"",null,null,null,"N2","Benzinas",1123.67," ",18,18,"",null,{"$f":"IFERROR(INDEX(AO$214:AO$238,AT231,COLUMNS(AV231)),\"\")","v":""},null,null,"",""]
[null,null,null,null,null,null,null,null,null,null,null,null,null,null,null,null,null,null,null,null,null,null,null,null,"N2","Suskystintos naftos dujos",7.9000000000000008E-3," ",19,19,"",null,{"$f":"IFERROR(INDEX(Z$214:Z$238,AE232,COLUMNS(AG232:AG232)),\"\")","v":""},null,null,"",null,null,null,"N2","Suskystintos naftos dujos",456.95," ",19,19,"",null,{"$f":"IFERROR(INDEX(AO$214:AO$238,AT232,COLUMNS(AV232)),\"\")","v":""},null,null,"",""]
[null,null,null,null,null,null,null,null,null,null,null,null,null,null,null,null,null,null,null,null,null,null,null,null,"N2","Dyzelinas",5.1999999999999998E-3," ",20,20,"",null,null,null,null,20,null,null,null,"N2","Dyzelinas",221.25," ",20,20,"",null,null,null,null,20,""]
[null,null,null,null,null,null,null,null,null,null,null,null,null,null,null,null,null,null,null,null,null,null,null,null,null,null,null," ",21,"","",null,null,null,null,"",null,null,null,null,null,null," ",21,"","",null,null,null,null,"",""]
[null,null,null,null,null,null,null,null,null,null,null,null,null,null,null,null,null,null,null,null,null,null,null,null,"N2","Vidutinis taršus automobilis",6.4999999999999997E-3," ",22,22,"",null,null,null,null,"",null,null,null,"N2","Vidutinis taršus automobilis",522.74," ",22,22,"",null,null,null,null,"",""]
[null,null,null,null,null,null,null,null,null,null,null,null,null,null,null,null,null,null,null,null,null,null,null,null,"N3","Dyzelinas",1.5699999999999999E-2," ",23,"","",null,null,null,null,"",null,null,null,"N3","Dyzelinas",413.92," ",23,"","",null,null,null,null,"",""]
[null,null,null,null,null,null,null,null,null,null,null,null,null,null,null,null,null,null,null,null,null,null,null,null,null,null,null," ",24,"","",null,null,null,null,"",null,null,null,null,null,null," ",24,"","",null,null,null,null,"",""]
[null,null,null,null,null,null,null,null,null,null,null,null,null,null,null,null,null,null,null,null,null,null,null,null,null,null,null," ",25,"",{"$f":"IFERROR(SMALL(AD$214:AD$238,AC238),\"\")","v":""}," "," "," "," ","",null," ",null,null,null,null," ",25,"",""," ",null," "," ","",""," "]

{"sheet":"ATNAUJINIMAS","index":3,"n_rows":10,"n_cols":7,"rows_kept":10,"cut":false,"hidden":false,"merged":[[0,15,4,19],[2,4,3,6]]}
[]
[]
[]
[]
[null,null,null,null,"Atnaujinimo data","Administratorius","Pastabos"]
[null,null,null,null,"2024.03.01","AAA Aplinkos būklės analitikos centras","Pirmos versijos viešinimas"]
[null,null,null,null,"2025.12.19","AAA Aplinkos būklės analitikos centras","Versijos viešinimas"]
[]
[]
[null,null,null,null,"* - nuolat naujinama"]